DepartmentFamily,Entity,Date,ExpenseType,ExpenseArea,Supplier,TransactionNumber,Amount,VATRegistrationNo
BEIS,The Insolvency Service,03/10/2016,Investigation and Enforcement Costs,INVESTIGATIONS & ENFORCEMENT                                                                        ,BOND DICKINSON                                              ,BA0000299748,"5,000.00",123392627
BEIS,The Insolvency Service,03/10/2016,Agency Workers,FINANCE AND COMMERCIAL,BROOK STREET (UK) LTD,BA0000299746,"20,652.92",
BEIS,The Insolvency Service,03/10/2016,Training Costs,INFORMATION TECHNOLOGY                                                                              ,CAPITA BUSINESS SERVICES LTD,BA0000299733,676.00,618184140
BEIS,The Insolvency Service,03/10/2016,Training Costs,PEOPLE & CAPABILITY                                                                                 ,CAPITA BUSINESS SERVICES LTD,BA0000299745,"1,094.66",618184140
BEIS,The Insolvency Service,03/10/2016,Training Costs,PEOPLE & CAPABILITY                                                                                 ,CAPITA BUSINESS SERVICES LTD,BA0000299734,"7,975.61",618184140
BEIS,The Insolvency Service,03/10/2016,Training Costs,OFFICIAL RECEIVER SERVICES                                                                          ,CHARTERED INSTITUTE OF INTERNAL AUDITORS,BA0000299757,575.00,354316368
BEIS,The Insolvency Service,03/10/2016,Training Costs,PEOPLE & CAPABILITY                                                                                 ,CHARTERED INSTITUTE OF INTERNAL AUDITORS,BA0000299740,"3,864.00",354316368
BEIS,The Insolvency Service,03/10/2016,Investigation and Enforcement Costs,OFFICIAL RECEIVER SERVICES                                                                          ,HMCTS,BA0000299724,308.00,
BEIS,The Insolvency Service,03/10/2016,Investigation and Enforcement Costs,OFFICIAL RECEIVER SERVICES                                                                          ,HMCTS,BA0000299741,308.00,
BEIS,The Insolvency Service,03/10/2016,Investigation and Enforcement Costs,OFFICIAL RECEIVER SERVICES                                                                          ,HMCTS,BA0000299744,308.00,
BEIS,The Insolvency Service,03/10/2016,Insolvency Case Related Costs,OFFICIAL RECEIVER SERVICES                                                                          ,HPI LTD,BA0000299754,190.16,942407139
BEIS,The Insolvency Service,03/10/2016,Insolvency Case Related Costs,OFFICIAL RECEIVER SERVICES                                                                          ,HPI LTD,BA0000299755,159.46,942407139
BEIS,The Insolvency Service,03/10/2016,Training Costs,FINANCE AND COMMERCIAL,KYPERA LTD,BA0000299751,"1,112.22",813905437
BEIS,The Insolvency Service,03/10/2016,Training Costs,FINANCE AND COMMERCIAL,KYPERA LTD,BA0000299756,960.30,813905437
BEIS,The Insolvency Service,03/10/2016,Agency Workers,P&C - People Relations                                                                              ,MICHAEL PAGE INTERNATIONAL RECRUITMENT LTD,BA0000299753,807.94,354259936
BEIS,The Insolvency Service,03/10/2016,Office Supplies and Services,OFFICIAL RECEIVER SERVICES                                                                          ,NEOPOST LIMITED (CONSUMABLES),BA0000299736,158.99,597265489
BEIS,The Insolvency Service,03/10/2016,Investigation and Enforcement Costs,OFFICIAL RECEIVER SERVICES                                                                          ,REGISTRAR OF COMPANIES,BA0000299725,300.00,
BEIS,The Insolvency Service,03/10/2016,Agency Workers,INFORMATION TECHNOLOGY                                                                              ,SPRING TECHNOLOGY STAFFING,BA0000299749,"2,254.27",
BEIS,The Insolvency Service,03/10/2016,Insolvency Case Related Costs,OFFICIAL RECEIVER SERVICES                                                                          ,THE STATIONERY OFFICE LTD,BA0000299723,139.80,662774703
BEIS,The Insolvency Service,04/10/2016,Computer and IT Systems,INFORMATION TECHNOLOGY                                                                              ,ATOS IT SERVICES UK LTD,BA0000299767,"9,080.53",
BEIS,The Insolvency Service,04/10/2016,Computer and IT Systems,INFORMATION TECHNOLOGY                                                                              ,ATOS IT SERVICES UK LTD,BA0000299798,278.04,
BEIS,The Insolvency Service,04/10/2016,Computer and IT Systems,INFORMATION TECHNOLOGY                                                                              ,ATOS IT SERVICES UK LTD,BA0000299799,"5,717.70",
BEIS,The Insolvency Service,04/10/2016,Computer and IT Systems,INFORMATION TECHNOLOGY                                                                              ,ATOS IT SERVICES UK LTD,BA0000299801,429.01,
BEIS,The Insolvency Service,04/10/2016,Computer and IT Systems,INFORMATION TECHNOLOGY                                                                              ,ATOS IT SERVICES UK LTD,BA0000299809,"2,467.34",
BEIS,The Insolvency Service,04/10/2016,Computer and IT Systems,INFORMATION TECHNOLOGY                                                                              ,ATOS IT SERVICES UK LTD,BA0000299803,"16,974.09",
BEIS,The Insolvency Service,04/10/2016,Training Costs,INFORMATION TECHNOLOGY                                                                              ,CAPITA BUSINESS SERVICES LTD,BA0000299800,867.05,618184140
BEIS,The Insolvency Service,04/10/2016,Accommodation,ESTATES,GVA                                                         ,BA0000299811,"2,204.19",657719590
BEIS,The Insolvency Service,04/10/2016,Employee Related Costs,P&C - People Relations                                                                              ,HEALTH MANAGEMENT LTD,BA0000299783,"2,310.00",792250621
BEIS,The Insolvency Service,04/10/2016,Employee Related Costs,P&C - People Relations                                                                              ,HEALTH MANAGEMENT LTD,BA0000299795,"1,875.84",792250621
BEIS,The Insolvency Service,04/10/2016,Insolvency Case Related Costs,OFFICIAL RECEIVER SERVICES                                                                          ,HPI LTD,BA0000299826,14.54,942407139
BEIS,The Insolvency Service,04/10/2016,Redact Compensation and Losses,Insolvency Case Related Costs,INSOLVENCY SERVICE,BA0000299806,492.78,
BEIS,The Insolvency Service,04/10/2016,Insolvency Case Related Costs,OFFICIAL RECEIVER SERVICES                                                                          ,INSOLVENCY SERVICE,BA0000299784,20.00,
BEIS,The Insolvency Service,04/10/2016,Accommodation,FINANCE AND COMMERCIAL                                                                              ,IRON MOUNTAIN (UK) LTD,BA0000299804,65.63,607937516
BEIS,The Insolvency Service,04/10/2016,Accommodation,FINANCE AND COMMERCIAL                                                                              ,IRON MOUNTAIN (UK) LTD,BA0000299804,184.07,607937516
BEIS,The Insolvency Service,04/10/2016,Accommodation,FINANCE AND COMMERCIAL                                                                              ,IRON MOUNTAIN (UK) LTD,BA0000299804,249.70,607937516
BEIS,The Insolvency Service,04/10/2016,Accommodation,FINANCE AND COMMERCIAL                                                                              ,IRON MOUNTAIN (UK) LTD,BA0000299804,"1,383.79",607937516
BEIS,The Insolvency Service,04/10/2016,Accommodation,FINANCE AND COMMERCIAL                                                                              ,IRON MOUNTAIN (UK) LTD,BA0000299804,"2,440.59",607937516
BEIS,The Insolvency Service,04/10/2016,Accommodation,FINANCE AND COMMERCIAL                                                                              ,IRON MOUNTAIN (UK) LTD,BA0000299804,"18,454.08",607937516
BEIS,The Insolvency Service,04/10/2016,Accommodation,ESTATES,KINGSTON UPON HULL CITY COUNCIL,BA0000299824,"32,553.50",
BEIS,The Insolvency Service,04/10/2016,Training Costs,FINANCE AND COMMERCIAL,KYPERA LTD,BA0000299820,528.00,813905437
BEIS,The Insolvency Service,04/10/2016,Training Costs,FINANCE AND COMMERCIAL,KYPERA LTD,BA0000299821,"1,053.95",813905437
BEIS,The Insolvency Service,04/10/2016,Postage,BUSINESS SERVICES DIRECTORATE                                                                       ,NEOPOST LTD - FRANKING TOP UPS,BA0000299805,50.00,
BEIS,The Insolvency Service,04/10/2016,Postage,BUSINESS SERVICES DIRECTORATE                                                                       ,NEOPOST LTD - FRANKING TOP UPS,BA0000299805,800.00,
BEIS,The Insolvency Service,04/10/2016,Postage,BUSINESS SERVICES DIRECTORATE                                                                       ,NEOPOST LTD - FRANKING TOP UPS,BA0000299805,950.00,
BEIS,The Insolvency Service,04/10/2016,Postage,BUSINESS SERVICES DIRECTORATE                                                                       ,NEOPOST LTD - FRANKING TOP UPS,BA0000299805,"1,000.00",
BEIS,The Insolvency Service,04/10/2016,Postage,OFFICIAL RECEIVER SERVICES                                                                          ,NEOPOST LTD - FRANKING TOP UPS,BA0000299805,200.00,
BEIS,The Insolvency Service,04/10/2016,Postage,OFFICIAL RECEIVER SERVICES                                                                          ,NEOPOST LTD - FRANKING TOP UPS,BA0000299805,500.00,
BEIS,The Insolvency Service,04/10/2016,Postage,OFFICIAL RECEIVER SERVICES                                                                          ,NEOPOST LTD - FRANKING TOP UPS,BA0000299805,500.00,
BEIS,The Insolvency Service,04/10/2016,Postage,OFFICIAL RECEIVER SERVICES                                                                          ,NEOPOST LTD - FRANKING TOP UPS,BA0000299805,"1,000.00",
BEIS,The Insolvency Service,04/10/2016,Postage,OFFICIAL RECEIVER SERVICES                                                                          ,NEOPOST LTD - FRANKING TOP UPS,BA0000299805,"1,000.00",
BEIS,The Insolvency Service,04/10/2016,Employee Related Costs,OFFICIAL RECEIVER SERVICES                                                                          ,POSTURITE (UK) LTD.,BA0000299796,45.85,
BEIS,The Insolvency Service,04/10/2016,Employee Related Costs,OFFICIAL RECEIVER SERVICES                                                                          ,POSTURITE (UK) LTD.,BA0000299797,827.36,
BEIS,The Insolvency Service,04/10/2016,Employee Related Costs,P&C - People Relations                                                                              ,RIGHT CORECARE Ltd                                          ,BA0000299802,485.44,
BEIS,The Insolvency Service,04/10/2016,Postage,FINANCE AND COMMERCIAL                                                                              ,ROYAL MAIL GROUP LTD - RESPONSE SERVICES)                   ,BA0000299794,3.86,243170002
BEIS,The Insolvency Service,04/10/2016,Insolvency Case Related Costs,OFFICIAL RECEIVER SERVICES                                                                          ,THE STATIONERY OFFICE LTD,BA0000299808,139.80,662774703
BEIS,The Insolvency Service,04/10/2016,Telecoms,OFFICIAL RECEIVER SERVICES                                                                          ,VODAFONE - CABLE & WIRELESS COMMUNICATIONS,BA0000299782,547.92,232303710
BEIS,The Insolvency Service,05/10/2016,Insolvency Case Related Costs,BUSINESS SERVICES DIRECTORATE                                                                       ,COMPANIES HOUSE,BA0000299850,17.00,GD255
BEIS,The Insolvency Service,05/10/2016,Telecoms,INFORMATION TECHNOLOGY                                                                              ,EE LTD (AIR TIME)                                           ,BA0000299859,70.80,771592016
BEIS,The Insolvency Service,05/10/2016,Computer and IT Systems,BUSINESS SERVICES DIRECTORATE                                                                       ,EXPERIAN QAS LTD,BA0000299857,"2,450.70",887133593
BEIS,The Insolvency Service,05/10/2016,Investigation and Enforcement Costs,INVESTIGATIONS & ENFORCEMENT                                                                        ,GOVERNMENT LEGAL DEPARTMENT                                 ,BA0000299807,-25.90,888823066
BEIS,The Insolvency Service,05/10/2016,Investigation and Enforcement Costs,INVESTIGATIONS & ENFORCEMENT                                                                        ,GOVERNMENT LEGAL DEPARTMENT                                 ,BA0000299841,"17,283.70",888823066
BEIS,The Insolvency Service,05/10/2016,Travel and Subsistence,FINANCE AND COMMERCIAL                                                                              ,GREENCLOSE HOTELS LTD - CAREYS MANOR HOTEL                  ,BA0000299860,"2,340.00",369957771
BEIS,The Insolvency Service,05/10/2016,Redact Compensation and Losses,Insolvency Case Related Costs,INSOLVENCY SERVICE,BA0000299858,380.48,
BEIS,The Insolvency Service,05/10/2016,Accommodation,ESTATES,LAND REGISTRY TELFORD,BA0000299855,855.47,
BEIS,The Insolvency Service,05/10/2016,Accommodation,ESTATES,NORTHAMPTONSHIRE COUNTY COUNCIL,BA0000299856,301.00,
BEIS,The Insolvency Service,05/10/2016,Travel and Subsistence,BUSINESS SERVICES DIRECTORATE                                                                       ,Staff Payment,BA0000299851,15.00,
BEIS,The Insolvency Service,05/10/2016,Travel and Subsistence,BUSINESS SERVICES DIRECTORATE                                                                       ,Staff Payment,BA0000299851,15.00,
BEIS,The Insolvency Service,05/10/2016,Travel and Subsistence,INFORMATION TECHNOLOGY                                                                              ,Staff Payment,BA0000299851,87.50,
BEIS,The Insolvency Service,05/10/2016,Travel and Subsistence,BUSINESS SERVICES DIRECTORATE                                                                       ,Staff Payment,BA0000299851,50.00,
BEIS,The Insolvency Service,05/10/2016,Travel and Subsistence,BUSINESS SERVICES DIRECTORATE                                                                       ,Staff Payment,BA0000299851,20.00,
BEIS,The Insolvency Service,05/10/2016,Travel and Subsistence,FINANCE AND COMMERCIAL                                                                              ,Staff Payment,BA0000299851,9.30,
BEIS,The Insolvency Service,05/10/2016,Travel and Subsistence,INFORMATION TECHNOLOGY                                                                              ,Staff Payment,BA0000299851,4.80,
BEIS,The Insolvency Service,05/10/2016,Travel and Subsistence,FINANCE AND COMMERCIAL                                                                              ,Staff Payment,BA0000299851,94.95,
BEIS,The Insolvency Service,05/10/2016,Travel and Subsistence,INFORMATION TECHNOLOGY                                                                              ,Staff Payment,BA0000299851,91.80,
BEIS,The Insolvency Service,05/10/2016,Travel and Subsistence,INFORMATION TECHNOLOGY                                                                              ,Staff Payment,BA0000299851,118.80,
BEIS,The Insolvency Service,05/10/2016,Travel and Subsistence,BUSINESS SERVICES DIRECTORATE                                                                       ,Staff Payment,BA0000299851,29.50,
BEIS,The Insolvency Service,05/10/2016,Travel and Subsistence,BUSINESS SERVICES DIRECTORATE                                                                       ,Staff Payment,BA0000299851,31.80,
BEIS,The Insolvency Service,05/10/2016,Travel and Subsistence,BUSINESS SERVICES DIRECTORATE                                                                       ,Staff Payment,BA0000299851,22.50,
BEIS,The Insolvency Service,05/10/2016,Travel and Subsistence,BUSINESS SERVICES DIRECTORATE                                                                       ,Staff Payment,BA0000299851,7.40,
BEIS,The Insolvency Service,05/10/2016,Travel and Subsistence,FINANCE AND COMMERCIAL                                                                              ,Staff Payment,BA0000299851,14.00,
BEIS,The Insolvency Service,05/10/2016,Travel and Subsistence,BUSINESS SERVICES DIRECTORATE                                                                       ,Staff Payment,BA0000299851,15.00,
BEIS,The Insolvency Service,05/10/2016,Travel and Subsistence,BUSINESS SERVICES DIRECTORATE                                                                       ,Staff Payment,BA0000299851,25.00,
BEIS,The Insolvency Service,05/10/2016,Travel and Subsistence,BUSINESS SERVICES DIRECTORATE                                                                       ,Staff Payment,BA0000299851,42.35,
BEIS,The Insolvency Service,05/10/2016,Travel and Subsistence,BUSINESS SERVICES DIRECTORATE                                                                       ,Staff Payment,BA0000299851,117.90,
BEIS,The Insolvency Service,05/10/2016,Travel and Subsistence,BUSINESS SERVICES DIRECTORATE                                                                       ,Staff Payment,BA0000299851,10.00,
BEIS,The Insolvency Service,05/10/2016,Travel and Subsistence,CUSTOMER AND COMMUNICATIONS                                                                         ,Staff Payment,BA0000299851,8.50,
BEIS,The Insolvency Service,05/10/2016,Travel and Subsistence,FINANCE AND COMMERCIAL                                                                              ,Staff Payment,BA0000299851,5.00,
BEIS,The Insolvency Service,05/10/2016,Travel and Subsistence,FINANCE AND COMMERCIAL                                                                              ,Staff Payment,BA0000299851,20.00,
BEIS,The Insolvency Service,05/10/2016,Travel and Subsistence,FINANCE AND COMMERCIAL                                                                              ,Staff Payment,BA0000299851,14.50,
BEIS,The Insolvency Service,05/10/2016,Travel and Subsistence,INFORMATION TECHNOLOGY                                                                              ,Staff Payment,BA0000299851,54.15,
BEIS,The Insolvency Service,05/10/2016,Travel and Subsistence,OFFICIAL RECEIVER SERVICES                                                                          ,Staff Payment,BA0000299851,5.43,
BEIS,The Insolvency Service,05/10/2016,Travel and Subsistence,PEOPLE & CAPABILITY                                                                                 ,Staff Payment,BA0000299851,20.00,
BEIS,The Insolvency Service,05/10/2016,Telecoms,INVESTIGATIONS & ENFORCEMENT                                                                        ,Staff Payment,BA0000299851,62.92,
BEIS,The Insolvency Service,05/10/2016,Telecoms,INVESTIGATIONS & ENFORCEMENT                                                                        ,Staff Payment,BA0000299851,185.92,
BEIS,The Insolvency Service,05/10/2016,Travel and Subsistence,OFFICIAL RECEIVER SERVICES                                                                          ,Staff Payment,BA0000299851,93.08,
BEIS,The Insolvency Service,05/10/2016,Travel and Subsistence,BUSINESS SERVICES DIRECTORATE                                                                       ,Staff Payment,BA0000299851,7.20,
BEIS,The Insolvency Service,05/10/2016,Travel and Subsistence,BUSINESS SERVICES DIRECTORATE                                                                       ,Staff Payment,BA0000299851,10.00,
BEIS,The Insolvency Service,05/10/2016,Travel and Subsistence,BUSINESS SERVICES DIRECTORATE                                                                       ,Staff Payment,BA0000299851,2.50,
BEIS,The Insolvency Service,05/10/2016,Travel and Subsistence,BUSINESS SERVICES DIRECTORATE                                                                       ,Staff Payment,BA0000299851,15.00,
BEIS,The Insolvency Service,05/10/2016,Travel and Subsistence,BUSINESS SERVICES DIRECTORATE                                                                       ,Staff Payment,BA0000299851,25.90,
BEIS,The Insolvency Service,05/10/2016,Travel and Subsistence,BUSINESS SERVICES DIRECTORATE                                                                       ,Staff Payment,BA0000299851,7.20,
BEIS,The Insolvency Service,05/10/2016,Travel and Subsistence,FINANCE AND COMMERCIAL                                                                              ,Staff Payment,BA0000299851,2.50,
BEIS,The Insolvency Service,05/10/2016,Travel and Subsistence,INVESTIGATIONS & ENFORCEMENT                                                                        ,Staff Payment,BA0000299851,3.60,
BEIS,The Insolvency Service,05/10/2016,Travel and Subsistence,INVESTIGATIONS & ENFORCEMENT                                                                        ,Staff Payment,BA0000299851,3.40,
BEIS,The Insolvency Service,05/10/2016,Travel and Subsistence,INVESTIGATIONS & ENFORCEMENT                                                                        ,Staff Payment,BA0000299851,6.50,
BEIS,The Insolvency Service,05/10/2016,Travel and Subsistence,INVESTIGATIONS & ENFORCEMENT                                                                        ,Staff Payment,BA0000299851,3.00,
BEIS,The Insolvency Service,05/10/2016,Travel and Subsistence,INVESTIGATIONS & ENFORCEMENT                                                                        ,Staff Payment,BA0000299851,4.80,
BEIS,The Insolvency Service,05/10/2016,Travel and Subsistence,INVESTIGATIONS & ENFORCEMENT                                                                        ,Staff Payment,BA0000299851,69.00,
BEIS,The Insolvency Service,05/10/2016,Travel and Subsistence,OFFICIAL RECEIVER SERVICES                                                                          ,Staff Payment,BA0000299851,23.50,
BEIS,The Insolvency Service,05/10/2016,Travel and Subsistence,OFFICIAL RECEIVER SERVICES                                                                          ,Staff Payment,BA0000299851,3.50,
BEIS,The Insolvency Service,05/10/2016,Travel and Subsistence,OFFICIAL RECEIVER SERVICES                                                                          ,Staff Payment,BA0000299851,2.50,
BEIS,The Insolvency Service,05/10/2016,Travel and Subsistence,P&C - People Relations                                                                              ,Staff Payment,BA0000299851,9.80,
BEIS,The Insolvency Service,05/10/2016,Travel and Subsistence,PEOPLE & CAPABILITY                                                                                 ,Staff Payment,BA0000299851,3.30,
BEIS,The Insolvency Service,05/10/2016,Travel and Subsistence,PEOPLE & CAPABILITY                                                                                 ,Staff Payment,BA0000299851,2.00,
BEIS,The Insolvency Service,05/10/2016,Travel and Subsistence,PEOPLE & CAPABILITY                                                                                 ,Staff Payment,BA0000299851,8.70,
BEIS,The Insolvency Service,05/10/2016,Travel and Subsistence,BUSINESS SERVICES DIRECTORATE                                                                       ,Staff Payment,BA0000299851,29.99,
BEIS,The Insolvency Service,05/10/2016,Travel and Subsistence,BUSINESS SERVICES DIRECTORATE                                                                       ,Staff Payment,BA0000299851,45.00,
BEIS,The Insolvency Service,05/10/2016,Travel and Subsistence,BUSINESS SERVICES DIRECTORATE                                                                       ,Staff Payment,BA0000299851,18.20,
BEIS,The Insolvency Service,05/10/2016,Travel and Subsistence,BUSINESS SERVICES DIRECTORATE                                                                       ,Staff Payment,BA0000299851,65.70,
BEIS,The Insolvency Service,05/10/2016,Travel and Subsistence,BUSINESS SERVICES DIRECTORATE                                                                       ,Staff Payment,BA0000299851,26.68,
BEIS,The Insolvency Service,05/10/2016,Travel and Subsistence,BUSINESS SERVICES DIRECTORATE                                                                       ,Staff Payment,BA0000299851,237.50,
BEIS,The Insolvency Service,05/10/2016,Travel and Subsistence,BUSINESS SERVICES DIRECTORATE                                                                       ,Staff Payment,BA0000299851,26.60,
BEIS,The Insolvency Service,05/10/2016,Travel and Subsistence,BUSINESS SERVICES DIRECTORATE                                                                       ,Staff Payment,BA0000299851,218.88,
BEIS,The Insolvency Service,05/10/2016,Travel and Subsistence,BUSINESS SERVICES DIRECTORATE                                                                       ,Staff Payment,BA0000299851,44.10,
BEIS,The Insolvency Service,05/10/2016,Travel and Subsistence,BUSINESS SERVICES DIRECTORATE                                                                       ,Staff Payment,BA0000299851,24.00,
BEIS,The Insolvency Service,05/10/2016,Travel and Subsistence,BUSINESS SERVICES DIRECTORATE                                                                       ,Staff Payment,BA0000299851,18.00,
BEIS,The Insolvency Service,05/10/2016,Travel and Subsistence,BUSINESS SERVICES DIRECTORATE                                                                       ,Staff Payment,BA0000299851,10.00,
BEIS,The Insolvency Service,05/10/2016,Travel and Subsistence,BUSINESS SERVICES DIRECTORATE                                                                       ,Staff Payment,BA0000299851,123.50,
BEIS,The Insolvency Service,05/10/2016,Travel and Subsistence,BUSINESS SERVICES DIRECTORATE                                                                       ,Staff Payment,BA0000299851,3.00,
BEIS,The Insolvency Service,05/10/2016,Travel and Subsistence,BUSINESS SERVICES DIRECTORATE                                                                       ,Staff Payment,BA0000299851,264.15,
BEIS,The Insolvency Service,05/10/2016,Travel and Subsistence,INFORMATION TECHNOLOGY                                                                              ,Staff Payment,BA0000299851,4.50,
BEIS,The Insolvency Service,05/10/2016,Travel and Subsistence,INVESTIGATIONS & ENFORCEMENT                                                                        ,Staff Payment,BA0000299851,28.80,
BEIS,The Insolvency Service,05/10/2016,Travel and Subsistence,INVESTIGATIONS & ENFORCEMENT                                                                        ,Staff Payment,BA0000299851,12.84,
BEIS,The Insolvency Service,05/10/2016,Travel and Subsistence,INVESTIGATIONS & ENFORCEMENT                                                                        ,Staff Payment,BA0000299851,12.00,
BEIS,The Insolvency Service,05/10/2016,Travel and Subsistence,INVESTIGATIONS & ENFORCEMENT                                                                        ,Staff Payment,BA0000299851,30.00,
BEIS,The Insolvency Service,05/10/2016,Travel and Subsistence,INVESTIGATIONS & ENFORCEMENT                                                                        ,Staff Payment,BA0000299851,16.00,
BEIS,The Insolvency Service,05/10/2016,Travel and Subsistence,INVESTIGATIONS & ENFORCEMENT                                                                        ,Staff Payment,BA0000299851,97.20,
BEIS,The Insolvency Service,05/10/2016,Travel and Subsistence,INVESTIGATIONS & ENFORCEMENT                                                                        ,Staff Payment,BA0000299851,26.80,
BEIS,The Insolvency Service,05/10/2016,Travel and Subsistence,INVESTIGATIONS & ENFORCEMENT                                                                        ,Staff Payment,BA0000299851,36.90,
BEIS,The Insolvency Service,05/10/2016,Travel and Subsistence,INVESTIGATIONS & ENFORCEMENT                                                                        ,Staff Payment,BA0000299851,5.20,
BEIS,The Insolvency Service,05/10/2016,Travel and Subsistence,INVESTIGATIONS & ENFORCEMENT                                                                        ,Staff Payment,BA0000299851,12.15,
BEIS,The Insolvency Service,05/10/2016,Travel and Subsistence,INVESTIGATIONS & ENFORCEMENT                                                                        ,Staff Payment,BA0000299851,14.00,
BEIS,The Insolvency Service,05/10/2016,Travel and Subsistence,INVESTIGATIONS & ENFORCEMENT                                                                        ,Staff Payment,BA0000299851,11.25,
BEIS,The Insolvency Service,05/10/2016,Travel and Subsistence,INVESTIGATIONS & ENFORCEMENT                                                                        ,Staff Payment,BA0000299851,12.00,
BEIS,The Insolvency Service,05/10/2016,Travel and Subsistence,INVESTIGATIONS & ENFORCEMENT                                                                        ,Staff Payment,BA0000299851,11.25,
BEIS,The Insolvency Service,05/10/2016,Travel and Subsistence,INVESTIGATIONS & ENFORCEMENT                                                                        ,Staff Payment,BA0000299851,12.00,
BEIS,The Insolvency Service,05/10/2016,Travel and Subsistence,INVESTIGATIONS & ENFORCEMENT                                                                        ,Staff Payment,BA0000299851,9.00,
BEIS,The Insolvency Service,05/10/2016,Travel and Subsistence,INVESTIGATIONS & ENFORCEMENT                                                                        ,Staff Payment,BA0000299851,12.00,
BEIS,The Insolvency Service,05/10/2016,Travel and Subsistence,INVESTIGATIONS & ENFORCEMENT                                                                        ,Staff Payment,BA0000299851,15.40,
BEIS,The Insolvency Service,05/10/2016,Travel and Subsistence,INVESTIGATIONS & ENFORCEMENT                                                                        ,Staff Payment,BA0000299851,75.60,
BEIS,The Insolvency Service,05/10/2016,Travel and Subsistence,INVESTIGATIONS & ENFORCEMENT                                                                        ,Staff Payment,BA0000299851,83.25,
BEIS,The Insolvency Service,05/10/2016,Travel and Subsistence,INVESTIGATIONS & ENFORCEMENT                                                                        ,Staff Payment,BA0000299851,142.20,
BEIS,The Insolvency Service,05/10/2016,Travel and Subsistence,INVESTIGATIONS & ENFORCEMENT                                                                        ,Staff Payment,BA0000299851,12.00,
BEIS,The Insolvency Service,05/10/2016,Travel and Subsistence,INVESTIGATIONS & ENFORCEMENT                                                                        ,Staff Payment,BA0000299851,18.90,
BEIS,The Insolvency Service,05/10/2016,Travel and Subsistence,INVESTIGATIONS & ENFORCEMENT                                                                        ,Staff Payment,BA0000299851,147.72,
BEIS,The Insolvency Service,05/10/2016,Travel and Subsistence,OFFICIAL RECEIVER SERVICES                                                                          ,Staff Payment,BA0000299851,4.00,
BEIS,The Insolvency Service,05/10/2016,Travel and Subsistence,OFFICIAL RECEIVER SERVICES                                                                          ,Staff Payment,BA0000299851,73.80,
BEIS,The Insolvency Service,05/10/2016,Travel and Subsistence,OFFICIAL RECEIVER SERVICES                                                                          ,Staff Payment,BA0000299851,15.30,
BEIS,The Insolvency Service,05/10/2016,Travel and Subsistence,OFFICIAL RECEIVER SERVICES                                                                          ,Staff Payment,BA0000299851,40.50,
BEIS,The Insolvency Service,05/10/2016,Travel and Subsistence,OFFICIAL RECEIVER SERVICES                                                                          ,Staff Payment,BA0000299851,12.00,
BEIS,The Insolvency Service,05/10/2016,Travel and Subsistence,OFFICIAL RECEIVER SERVICES                                                                          ,Staff Payment,BA0000299851,40.50,
BEIS,The Insolvency Service,05/10/2016,Travel and Subsistence,OFFICIAL RECEIVER SERVICES                                                                          ,Staff Payment,BA0000299851,6.40,
BEIS,The Insolvency Service,05/10/2016,Travel and Subsistence,OFFICIAL RECEIVER SERVICES                                                                          ,Staff Payment,BA0000299851,66.41,
BEIS,The Insolvency Service,05/10/2016,Travel and Subsistence,OFFICIAL RECEIVER SERVICES                                                                          ,Staff Payment,BA0000299851,12.00,
BEIS,The Insolvency Service,05/10/2016,Travel and Subsistence,OFFICIAL RECEIVER SERVICES                                                                          ,Staff Payment,BA0000299851,81.00,
BEIS,The Insolvency Service,05/10/2016,Travel and Subsistence,OFFICIAL RECEIVER SERVICES                                                                          ,Staff Payment,BA0000299851,4.50,
BEIS,The Insolvency Service,05/10/2016,Travel and Subsistence,OFFICIAL RECEIVER SERVICES                                                                          ,Staff Payment,BA0000299851,109.80,
BEIS,The Insolvency Service,05/10/2016,Travel and Subsistence,OFFICIAL RECEIVER SERVICES                                                                          ,Staff Payment,BA0000299851,23.85,
BEIS,The Insolvency Service,05/10/2016,Travel and Subsistence,OFFICIAL RECEIVER SERVICES                                                                          ,Staff Payment,BA0000299851,11.00,
BEIS,The Insolvency Service,05/10/2016,Travel and Subsistence,OFFICIAL RECEIVER SERVICES                                                                          ,Staff Payment,BA0000299851,9.94,
BEIS,The Insolvency Service,05/10/2016,Travel and Subsistence,OFFICIAL RECEIVER SERVICES                                                                          ,Staff Payment,BA0000299851,62.10,
BEIS,The Insolvency Service,05/10/2016,Travel and Subsistence,OFFICIAL RECEIVER SERVICES                                                                          ,Staff Payment,BA0000299851,5.20,
BEIS,The Insolvency Service,05/10/2016,Travel and Subsistence,OFFICIAL RECEIVER SERVICES                                                                          ,Staff Payment,BA0000299851,6.00,
BEIS,The Insolvency Service,05/10/2016,Travel and Subsistence,OFFICIAL RECEIVER SERVICES                                                                          ,Staff Payment,BA0000299851,114.30,
BEIS,The Insolvency Service,05/10/2016,Travel and Subsistence,OFFICIAL RECEIVER SERVICES                                                                          ,Staff Payment,BA0000299851,5.00,
BEIS,The Insolvency Service,05/10/2016,Travel and Subsistence,OFFICIAL RECEIVER SERVICES                                                                          ,Staff Payment,BA0000299851,10.80,
BEIS,The Insolvency Service,05/10/2016,Travel and Subsistence,OFFICIAL RECEIVER SERVICES                                                                          ,Staff Payment,BA0000299851,12.00,
BEIS,The Insolvency Service,05/10/2016,Travel and Subsistence,OFFICIAL RECEIVER SERVICES                                                                          ,Staff Payment,BA0000299851,9.00,
BEIS,The Insolvency Service,05/10/2016,Travel and Subsistence,OFFICIAL RECEIVER SERVICES                                                                          ,Staff Payment,BA0000299851,12.00,
BEIS,The Insolvency Service,05/10/2016,Travel and Subsistence,OFFICIAL RECEIVER SERVICES                                                                          ,Staff Payment,BA0000299851,9.00,
BEIS,The Insolvency Service,05/10/2016,Travel and Subsistence,OFFICIAL RECEIVER SERVICES                                                                          ,Staff Payment,BA0000299851,12.00,
BEIS,The Insolvency Service,05/10/2016,Travel and Subsistence,OFFICIAL RECEIVER SERVICES                                                                          ,Staff Payment,BA0000299851,9.00,
BEIS,The Insolvency Service,05/10/2016,Travel and Subsistence,P&C - People Relations                                                                              ,Staff Payment,BA0000299851,5.80,
BEIS,The Insolvency Service,05/10/2016,Travel and Subsistence,P&C - People Relations                                                                              ,Staff Payment,BA0000299851,12.00,
BEIS,The Insolvency Service,05/10/2016,Travel and Subsistence,P&C - People Relations                                                                              ,Staff Payment,BA0000299851,7.60,
BEIS,The Insolvency Service,05/10/2016,Travel and Subsistence,PEOPLE & CAPABILITY                                                                                 ,Staff Payment,BA0000299851,18.00,
BEIS,The Insolvency Service,05/10/2016,Travel and Subsistence,PEOPLE & CAPABILITY                                                                                 ,Staff Payment,BA0000299851,32.40,
BEIS,The Insolvency Service,05/10/2016,Travel and Subsistence,BUSINESS SERVICES DIRECTORATE                                                                       ,Staff Payment,BA0000299851,12.80,
BEIS,The Insolvency Service,05/10/2016,Travel and Subsistence,BUSINESS SERVICES DIRECTORATE                                                                       ,Staff Payment,BA0000299851,6.00,
BEIS,The Insolvency Service,05/10/2016,Travel and Subsistence,FINANCE AND COMMERCIAL                                                                              ,Staff Payment,BA0000299851,13.00,
BEIS,The Insolvency Service,05/10/2016,Travel and Subsistence,INVESTIGATIONS & ENFORCEMENT                                                                        ,Staff Payment,BA0000299851,13.00,
BEIS,The Insolvency Service,05/10/2016,Travel and Subsistence,INVESTIGATIONS & ENFORCEMENT                                                                        ,Staff Payment,BA0000299851,40.00,
BEIS,The Insolvency Service,05/10/2016,Travel and Subsistence,BUSINESS SERVICES DIRECTORATE                                                                       ,Staff Payment,BA0000299851,20.74,
BEIS,The Insolvency Service,05/10/2016,Travel and Subsistence,BUSINESS SERVICES DIRECTORATE                                                                       ,Staff Payment,BA0000299851,10.00,
BEIS,The Insolvency Service,05/10/2016,Travel and Subsistence,BUSINESS SERVICES DIRECTORATE                                                                       ,Staff Payment,BA0000299851,28.29,
BEIS,The Insolvency Service,05/10/2016,Travel and Subsistence,BUSINESS SERVICES DIRECTORATE                                                                       ,Staff Payment,BA0000299851,25.00,
BEIS,The Insolvency Service,05/10/2016,Travel and Subsistence,BUSINESS SERVICES DIRECTORATE                                                                       ,Staff Payment,BA0000299851,20.00,
BEIS,The Insolvency Service,05/10/2016,Travel and Subsistence,BUSINESS SERVICES DIRECTORATE                                                                       ,Staff Payment,BA0000299851,23.85,
BEIS,The Insolvency Service,05/10/2016,Travel and Subsistence,BUSINESS SERVICES DIRECTORATE                                                                       ,Staff Payment,BA0000299851,29.70,
BEIS,The Insolvency Service,05/10/2016,Travel and Subsistence,BUSINESS SERVICES DIRECTORATE                                                                       ,Staff Payment,BA0000299851,25.00,
BEIS,The Insolvency Service,05/10/2016,Travel and Subsistence,BUSINESS SERVICES DIRECTORATE                                                                       ,Staff Payment,BA0000299851,30.00,
BEIS,The Insolvency Service,05/10/2016,Travel and Subsistence,BUSINESS SERVICES DIRECTORATE                                                                       ,Staff Payment,BA0000299851,26.95,
BEIS,The Insolvency Service,05/10/2016,Travel and Subsistence,BUSINESS SERVICES DIRECTORATE                                                                       ,Staff Payment,BA0000299851,30.00,
BEIS,The Insolvency Service,05/10/2016,Travel and Subsistence,FINANCE AND COMMERCIAL                                                                              ,Staff Payment,BA0000299851,9.10,
BEIS,The Insolvency Service,05/10/2016,Travel and Subsistence,FINANCE AND COMMERCIAL                                                                              ,Staff Payment,BA0000299851,48.20,
BEIS,The Insolvency Service,05/10/2016,Travel and Subsistence,FINANCE AND COMMERCIAL                                                                              ,Staff Payment,BA0000299851,20.00,
BEIS,The Insolvency Service,05/10/2016,Travel and Subsistence,INFORMATION TECHNOLOGY                                                                              ,Staff Payment,BA0000299851,11.35,
BEIS,The Insolvency Service,05/10/2016,Travel and Subsistence,INFORMATION TECHNOLOGY                                                                              ,Staff Payment,BA0000299851,5.25,
BEIS,The Insolvency Service,05/10/2016,Travel and Subsistence,INFORMATION TECHNOLOGY                                                                              ,Staff Payment,BA0000299851,64.50,
BEIS,The Insolvency Service,05/10/2016,Travel and Subsistence,INVESTIGATIONS & ENFORCEMENT                                                                        ,Staff Payment,BA0000299851,5.00,
BEIS,The Insolvency Service,05/10/2016,Travel and Subsistence,INVESTIGATIONS & ENFORCEMENT                                                                        ,Staff Payment,BA0000299851,5.00,
BEIS,The Insolvency Service,05/10/2016,Travel and Subsistence,INVESTIGATIONS & ENFORCEMENT                                                                        ,Staff Payment,BA0000299851,4.58,
BEIS,The Insolvency Service,05/10/2016,Travel and Subsistence,INVESTIGATIONS & ENFORCEMENT                                                                        ,Staff Payment,BA0000299851,5.00,
BEIS,The Insolvency Service,05/10/2016,Travel and Subsistence,INVESTIGATIONS & ENFORCEMENT                                                                        ,Staff Payment,BA0000299851,8.80,
BEIS,The Insolvency Service,05/10/2016,Travel and Subsistence,INVESTIGATIONS & ENFORCEMENT                                                                        ,Staff Payment,BA0000299851,25.00,
BEIS,The Insolvency Service,05/10/2016,Travel and Subsistence,INVESTIGATIONS & ENFORCEMENT                                                                        ,Staff Payment,BA0000299851,14.39,
BEIS,The Insolvency Service,05/10/2016,Travel and Subsistence,INVESTIGATIONS & ENFORCEMENT                                                                        ,Staff Payment,BA0000299851,34.20,
BEIS,The Insolvency Service,05/10/2016,Travel and Subsistence,INVESTIGATIONS & ENFORCEMENT                                                                        ,Staff Payment,BA0000299851,83.59,
BEIS,The Insolvency Service,05/10/2016,Travel and Subsistence,INVESTIGATIONS & ENFORCEMENT                                                                        ,Staff Payment,BA0000299851,10.00,
BEIS,The Insolvency Service,05/10/2016,Travel and Subsistence,INVESTIGATIONS & ENFORCEMENT                                                                        ,Staff Payment,BA0000299851,24.63,
BEIS,The Insolvency Service,05/10/2016,Travel and Subsistence,INVESTIGATIONS & ENFORCEMENT                                                                        ,Staff Payment,BA0000299851,51.32,
BEIS,The Insolvency Service,05/10/2016,Travel and Subsistence,INVESTIGATIONS & ENFORCEMENT                                                                        ,Staff Payment,BA0000299851,2.70,
BEIS,The Insolvency Service,05/10/2016,Travel and Subsistence,INVESTIGATIONS & ENFORCEMENT                                                                        ,Staff Payment,BA0000299851,4.62,
BEIS,The Insolvency Service,05/10/2016,Travel and Subsistence,INVESTIGATIONS & ENFORCEMENT                                                                        ,Staff Payment,BA0000299851,4.28,
BEIS,The Insolvency Service,05/10/2016,Travel and Subsistence,INVESTIGATIONS & ENFORCEMENT                                                                        ,Staff Payment,BA0000299851,34.20,
BEIS,The Insolvency Service,05/10/2016,Travel and Subsistence,INVESTIGATIONS & ENFORCEMENT                                                                        ,Staff Payment,BA0000299851,5.00,
BEIS,The Insolvency Service,05/10/2016,Travel and Subsistence,INVESTIGATIONS & ENFORCEMENT                                                                        ,Staff Payment,BA0000299851,4.50,
BEIS,The Insolvency Service,05/10/2016,Travel and Subsistence,INVESTIGATIONS & ENFORCEMENT                                                                        ,Staff Payment,BA0000299851,5.00,
BEIS,The Insolvency Service,05/10/2016,Travel and Subsistence,INVESTIGATIONS & ENFORCEMENT                                                                        ,Staff Payment,BA0000299851,9.79,
BEIS,The Insolvency Service,05/10/2016,Travel and Subsistence,INVESTIGATIONS & ENFORCEMENT                                                                        ,Staff Payment,BA0000299851,15.60,
BEIS,The Insolvency Service,05/10/2016,Travel and Subsistence,INVESTIGATIONS & ENFORCEMENT                                                                        ,Staff Payment,BA0000299851,5.00,
BEIS,The Insolvency Service,05/10/2016,Travel and Subsistence,INVESTIGATIONS & ENFORCEMENT                                                                        ,Staff Payment,BA0000299851,8.94,
BEIS,The Insolvency Service,05/10/2016,Travel and Subsistence,INVESTIGATIONS & ENFORCEMENT                                                                        ,Staff Payment,BA0000299851,4.20,
BEIS,The Insolvency Service,05/10/2016,Travel and Subsistence,INVESTIGATIONS & ENFORCEMENT                                                                        ,Staff Payment,BA0000299851,4.25,
BEIS,The Insolvency Service,05/10/2016,Travel and Subsistence,INVESTIGATIONS & ENFORCEMENT                                                                        ,Staff Payment,BA0000299851,5.00,
BEIS,The Insolvency Service,05/10/2016,Travel and Subsistence,INVESTIGATIONS & ENFORCEMENT                                                                        ,Staff Payment,BA0000299851,4.80,
BEIS,The Insolvency Service,05/10/2016,Travel and Subsistence,INVESTIGATIONS & ENFORCEMENT                                                                        ,Staff Payment,BA0000299851,4.40,
BEIS,The Insolvency Service,05/10/2016,Travel and Subsistence,OFFICIAL RECEIVER SERVICES                                                                          ,Staff Payment,BA0000299851,10.00,
BEIS,The Insolvency Service,05/10/2016,Travel and Subsistence,OFFICIAL RECEIVER SERVICES                                                                          ,Staff Payment,BA0000299851,4.99,
BEIS,The Insolvency Service,05/10/2016,Travel and Subsistence,OFFICIAL RECEIVER SERVICES                                                                          ,Staff Payment,BA0000299851,3.80,
BEIS,The Insolvency Service,05/10/2016,Travel and Subsistence,OFFICIAL RECEIVER SERVICES                                                                          ,Staff Payment,BA0000299851,5.00,
BEIS,The Insolvency Service,05/10/2016,Travel and Subsistence,OFFICIAL RECEIVER SERVICES                                                                          ,Staff Payment,BA0000299851,5.00,
BEIS,The Insolvency Service,05/10/2016,Travel and Subsistence,OFFICIAL RECEIVER SERVICES                                                                          ,Staff Payment,BA0000299851,3.84,
BEIS,The Insolvency Service,05/10/2016,Travel and Subsistence,OFFICIAL RECEIVER SERVICES                                                                          ,Staff Payment,BA0000299851,24.50,
BEIS,The Insolvency Service,05/10/2016,Travel and Subsistence,OFFICIAL RECEIVER SERVICES                                                                          ,Staff Payment,BA0000299851,20.00,
BEIS,The Insolvency Service,05/10/2016,Travel and Subsistence,OFFICIAL RECEIVER SERVICES                                                                          ,Staff Payment,BA0000299851,15.00,
BEIS,The Insolvency Service,05/10/2016,Travel and Subsistence,OFFICIAL RECEIVER SERVICES                                                                          ,Staff Payment,BA0000299851,9.23,
BEIS,The Insolvency Service,05/10/2016,Travel and Subsistence,OFFICIAL RECEIVER SERVICES                                                                          ,Staff Payment,BA0000299851,3.25,
BEIS,The Insolvency Service,05/10/2016,Travel and Subsistence,OFFICIAL RECEIVER SERVICES                                                                          ,Staff Payment,BA0000299851,5.00,
BEIS,The Insolvency Service,05/10/2016,Travel and Subsistence,OFFICIAL RECEIVER SERVICES                                                                          ,Staff Payment,BA0000299851,24.00,
BEIS,The Insolvency Service,05/10/2016,Travel and Subsistence,OFFICIAL RECEIVER SERVICES                                                                          ,Staff Payment,BA0000299851,83.00,
BEIS,The Insolvency Service,05/10/2016,Travel and Subsistence,OFFICIAL RECEIVER SERVICES                                                                          ,Staff Payment,BA0000299851,4.94,
BEIS,The Insolvency Service,05/10/2016,Travel and Subsistence,OFFICIAL RECEIVER SERVICES                                                                          ,Staff Payment,BA0000299851,4.55,
BEIS,The Insolvency Service,05/10/2016,Travel and Subsistence,OFFICIAL RECEIVER SERVICES                                                                          ,Staff Payment,BA0000299851,5.00,
BEIS,The Insolvency Service,05/10/2016,Travel and Subsistence,OFFICIAL RECEIVER SERVICES                                                                          ,Staff Payment,BA0000299851,5.00,
BEIS,The Insolvency Service,05/10/2016,Travel and Subsistence,OFFICIAL RECEIVER SERVICES                                                                          ,Staff Payment,BA0000299851,88.45,
BEIS,The Insolvency Service,05/10/2016,Travel and Subsistence,OFFICIAL RECEIVER SERVICES                                                                          ,Staff Payment,BA0000299851,3.40,
BEIS,The Insolvency Service,05/10/2016,Travel and Subsistence,OFFICIAL RECEIVER SERVICES                                                                          ,Staff Payment,BA0000299851,4.75,
BEIS,The Insolvency Service,05/10/2016,Travel and Subsistence,OFFICIAL RECEIVER SERVICES                                                                          ,Staff Payment,BA0000299851,10.00,
BEIS,The Insolvency Service,05/10/2016,Travel and Subsistence,OFFICIAL RECEIVER SERVICES                                                                          ,Staff Payment,BA0000299851,5.00,
BEIS,The Insolvency Service,05/10/2016,Travel and Subsistence,OFFICIAL RECEIVER SERVICES                                                                          ,Staff Payment,BA0000299851,5.00,
BEIS,The Insolvency Service,05/10/2016,Travel and Subsistence,OFFICIAL RECEIVER SERVICES                                                                          ,Staff Payment,BA0000299851,100.06,
BEIS,The Insolvency Service,05/10/2016,Travel and Subsistence,PEOPLE & CAPABILITY                                                                                 ,Staff Payment,BA0000299851,5.00,
BEIS,The Insolvency Service,05/10/2016,Travel and Subsistence,PEOPLE & CAPABILITY                                                                                 ,Staff Payment,BA0000299851,15.00,
BEIS,The Insolvency Service,05/10/2016,Travel and Subsistence,PEOPLE & CAPABILITY                                                                                 ,Staff Payment,BA0000299851,37.50,
BEIS,The Insolvency Service,05/10/2016,Insolvency Case Related Costs,INVESTIGATIONS & ENFORCEMENT                                                                        ,Staff Payment,BA0000299851,14.00,
BEIS,The Insolvency Service,05/10/2016,Insolvency Case Related Costs,INVESTIGATIONS & ENFORCEMENT                                                                        ,Staff Payment,BA0000299851,7.00,
BEIS,The Insolvency Service,05/10/2016,Insolvency Case Related Costs,INVESTIGATIONS & ENFORCEMENT                                                                        ,Staff Payment,BA0000299851,7.00,
BEIS,The Insolvency Service,05/10/2016,Insolvency Case Related Costs,INVESTIGATIONS & ENFORCEMENT                                                                        ,Staff Payment,BA0000299851,25.00,
BEIS,The Insolvency Service,05/10/2016,Insolvency Case Related Costs,INVESTIGATIONS & ENFORCEMENT                                                                        ,Staff Payment,BA0000299851,7.00,
BEIS,The Insolvency Service,05/10/2016,Insolvency Case Related Costs,INVESTIGATIONS & ENFORCEMENT                                                                        ,Staff Payment,BA0000299851,7.00,
BEIS,The Insolvency Service,05/10/2016,Insolvency Case Related Costs,INVESTIGATIONS & ENFORCEMENT                                                                        ,Staff Payment,BA0000299851,7.00,
BEIS,The Insolvency Service,05/10/2016,Employee Related Costs,OFFICIAL RECEIVER SERVICES                                                                          ,Staff Payment,BA0000299851,5.20,
BEIS,The Insolvency Service,05/10/2016,Office Supplies and Services,INVESTIGATIONS & ENFORCEMENT                                                                        ,Staff Payment,BA0000299851,3.00,
BEIS,The Insolvency Service,05/10/2016,Insolvency Case Related Costs,FINANCE AND COMMERCIAL                                                                              ,THE SURVEILLANCE GROUP LTD                                  ,BA0000299845,"4,179.06",918530324
BEIS,The Insolvency Service,06/10/2016,Agency Workers,FINANCE AND COMMERCIAL                                                                              ,ALLEN LANE LIMITED,BA0000299881,"1,184.14",835970985
BEIS,The Insolvency Service,06/10/2016,Agency Workers,FINANCE AND COMMERCIAL,BROOK STREET (UK) LTD,BA0000299891,"22,299.17",
BEIS,The Insolvency Service,06/10/2016,Investigation and Enforcement Costs,INVESTIGATIONS & ENFORCEMENT                                                                        ,DWF                                                         ,BA0000299892,"2,603.00",
BEIS,The Insolvency Service,06/10/2016,Investigation and Enforcement Costs,INVESTIGATIONS & ENFORCEMENT                                                                        ,DWF                                                         ,BA0000299893,"3,290.00",
BEIS,The Insolvency Service,06/10/2016,Computer and IT Systems,BUSINESS SERVICES DIRECTORATE                                                                       ,EXPERIAN QAS LTD,BA0000299895,"9,783.60",887133593
BEIS,The Insolvency Service,06/10/2016,Investigation and Enforcement Costs,CUSTOMER AND COMMUNICATIONS                                                                         ,GORKANA GROUP LTD                                           ,BA0000299880,576.00,757158012
BEIS,The Insolvency Service,06/10/2016,Agency Workers,INFORMATION TECHNOLOGY                                                                              ,HAYS SPECIALIST RECRUITMENT LTD,BA0000299883,"3,012.00",773695871
BEIS,The Insolvency Service,06/10/2016,Insolvency Case Related Costs,OFFICIAL RECEIVER SERVICES                                                                          ,HPI LTD,BA0000299879,166.31,942407139
BEIS,The Insolvency Service,06/10/2016,Insolvency Case Related Costs,OFFICIAL RECEIVER SERVICES                                                                          ,HPI LTD,BA0000299890,3.64,942407139
BEIS,The Insolvency Service,06/10/2016,Insolvency Case Related Costs,OFFICIAL RECEIVER SERVICES                                                                          ,HPI LTD,BA0000299897,3.64,942407139
BEIS,The Insolvency Service,06/10/2016,Office Supplies and Services,OFFICIAL RECEIVER SERVICES                                                                          ,HPI LTD,BA0000299878,10.91,942407139
BEIS,The Insolvency Service,06/10/2016,Accommodation,ESTATES,JONES LANG LASALLE,BA0000299864,"2,073.00",244155576
BEIS,The Insolvency Service,06/10/2016,Agency Workers,INFORMATION TECHNOLOGY                                                                              ,JUMAR SOLUTIONS LTD                                         ,BA0000299884,"9,126.00",
BEIS,The Insolvency Service,06/10/2016,Telecoms,OFFICIAL RECEIVER SERVICES                                                                          ,KCOM GROUP PLC,BA0000299873,72.00,647235137
BEIS,The Insolvency Service,06/10/2016,Telecoms,OFFICIAL RECEIVER SERVICES                                                                          ,KCOM GROUP PLC,BA0000299874,72.00,647235137
BEIS,The Insolvency Service,06/10/2016,Training Costs,FINANCE AND COMMERCIAL,KYPERA LTD,BA0000299896,"1,041.48",813905437
BEIS,The Insolvency Service,06/10/2016,Agency Workers,INFORMATION TECHNOLOGY                                                                              ,LA INTERNATIONAL COMPUTER CONSULTANTS LTD,BA0000299875,"6,912.00",
BEIS,The Insolvency Service,06/10/2016,Investigation and Enforcement Costs,INVESTIGATIONS & ENFORCEMENT                                                                        ,MD5 LTD                                                     ,BA0000299885,"1,250.00",
BEIS,The Insolvency Service,06/10/2016,Investigation and Enforcement Costs,INVESTIGATIONS & ENFORCEMENT                                                                        ,MD5 LTD                                                     ,BA0000299886,"1,670.00",
BEIS,The Insolvency Service,06/10/2016,Agency Workers,P&C - People Relations                                                                              ,MICHAEL PAGE INTERNATIONAL RECRUITMENT LTD,BA0000299876,664.68,354259936
BEIS,The Insolvency Service,06/10/2016,Accommodation,ESTATES,MIDDLESBROUGH COUNCIL                                       ,BA0000299894,344.70,734213854
BEIS,The Insolvency Service,06/10/2016,Training Costs,BUSINESS SERVICES DIRECTORATE                                                                       ,QA LIMITED,BA0000299877,455.00,
BEIS,The Insolvency Service,06/10/2016,Postage,FINANCE AND COMMERCIAL                                                                              ,ROYAL MAIL GROUP LTD - RESPONSE SERVICES)                   ,BA0000299865,48.08,243170002
BEIS,The Insolvency Service,06/10/2016,Investigation and Enforcement Costs,INVESTIGATIONS & ENFORCEMENT                                                                        ,SHEPHERD & WEDDERBURN WS (SCOTTISH CASES)                   ,BA0000299882,"2,440.83",890559386
BEIS,The Insolvency Service,06/10/2016,Investigation and Enforcement Costs,INVESTIGATIONS & ENFORCEMENT                                                                        ,SHEPHERD & WEDDERBURN WS (SCOTTISH CASES)                   ,BA0000299882,"3,808.42",890559386
BEIS,The Insolvency Service,06/10/2016,Travel and Subsistence,OFFICIAL RECEIVER SERVICES                                                                          ,Staff Payment,BA0000299888,47.70,
BEIS,The Insolvency Service,06/10/2016,Travel and Subsistence,P&C - Talent                                                                                        ,Staff Payment,BA0000299888,10.00,
BEIS,The Insolvency Service,06/10/2016,Travel and Subsistence,INFORMATION TECHNOLOGY                                                                              ,Staff Payment,BA0000299888,4.39,
BEIS,The Insolvency Service,06/10/2016,Travel and Subsistence,P&C - Talent                                                                                        ,Staff Payment,BA0000299888,10.00,
BEIS,The Insolvency Service,06/10/2016,Employee Related Costs,P&C - Talent                                                                                        ,Staff Payment,BA0000299888,37.00,
BEIS,The Insolvency Service,06/10/2016,Travel and Subsistence,OFFICIAL RECEIVER SERVICES                                                                          ,Staff Payment,BA0000299888,79.25,
BEIS,The Insolvency Service,06/10/2016,Travel and Subsistence,BUSINESS SERVICES DIRECTORATE                                                                       ,Staff Payment,BA0000299888,9.80,
BEIS,The Insolvency Service,06/10/2016,Travel and Subsistence,BUSINESS SERVICES DIRECTORATE                                                                       ,Staff Payment,BA0000299888,1.60,
BEIS,The Insolvency Service,06/10/2016,Travel and Subsistence,BUSINESS SERVICES DIRECTORATE                                                                       ,Staff Payment,BA0000299888,7.70,
BEIS,The Insolvency Service,06/10/2016,Travel and Subsistence,BUSINESS SERVICES DIRECTORATE                                                                       ,Staff Payment,BA0000299888,9.80,
BEIS,The Insolvency Service,06/10/2016,Travel and Subsistence,INVESTIGATIONS & ENFORCEMENT                                                                        ,Staff Payment,BA0000299888,20.70,
BEIS,The Insolvency Service,06/10/2016,Travel and Subsistence,OFFICIAL RECEIVER SERVICES                                                                          ,Staff Payment,BA0000299888,307.40,
BEIS,The Insolvency Service,06/10/2016,Travel and Subsistence,OFFICIAL RECEIVER SERVICES                                                                          ,Staff Payment,BA0000299888,2.50,
BEIS,The Insolvency Service,06/10/2016,Travel and Subsistence,OFFICIAL RECEIVER SERVICES                                                                          ,Staff Payment,BA0000299888,3.80,
BEIS,The Insolvency Service,06/10/2016,Travel and Subsistence,OFFICIAL RECEIVER SERVICES                                                                          ,Staff Payment,BA0000299888,7.20,
BEIS,The Insolvency Service,06/10/2016,Travel and Subsistence,P&C - People Relations                                                                              ,Staff Payment,BA0000299888,7.20,
BEIS,The Insolvency Service,06/10/2016,Travel and Subsistence,BUSINESS SERVICES DIRECTORATE                                                                       ,Staff Payment,BA0000299888,15.00,
BEIS,The Insolvency Service,06/10/2016,Travel and Subsistence,BUSINESS SERVICES DIRECTORATE                                                                       ,Staff Payment,BA0000299888,127.35,
BEIS,The Insolvency Service,06/10/2016,Travel and Subsistence,BUSINESS SERVICES DIRECTORATE                                                                       ,Staff Payment,BA0000299888,5.50,
BEIS,The Insolvency Service,06/10/2016,Travel and Subsistence,BUSINESS SERVICES DIRECTORATE                                                                       ,Staff Payment,BA0000299888,102.60,
BEIS,The Insolvency Service,06/10/2016,Travel and Subsistence,INFORMATION TECHNOLOGY                                                                              ,Staff Payment,BA0000299888,12.00,
BEIS,The Insolvency Service,06/10/2016,Travel and Subsistence,INFORMATION TECHNOLOGY                                                                              ,Staff Payment,BA0000299888,126.00,
BEIS,The Insolvency Service,06/10/2016,Travel and Subsistence,INVESTIGATIONS & ENFORCEMENT                                                                        ,Staff Payment,BA0000299888,97.05,
BEIS,The Insolvency Service,06/10/2016,Travel and Subsistence,OFFICIAL RECEIVER SERVICES                                                                          ,Staff Payment,BA0000299888,10.35,
BEIS,The Insolvency Service,06/10/2016,Travel and Subsistence,OFFICIAL RECEIVER SERVICES                                                                          ,Staff Payment,BA0000299888,15.50,
BEIS,The Insolvency Service,06/10/2016,Travel and Subsistence,OFFICIAL RECEIVER SERVICES                                                                          ,Staff Payment,BA0000299888,3.00,
BEIS,The Insolvency Service,06/10/2016,Travel and Subsistence,OFFICIAL RECEIVER SERVICES                                                                          ,Staff Payment,BA0000299888,44.10,
BEIS,The Insolvency Service,06/10/2016,Travel and Subsistence,OFFICIAL RECEIVER SERVICES                                                                          ,Staff Payment,BA0000299888,6.00,
BEIS,The Insolvency Service,06/10/2016,Travel and Subsistence,OFFICIAL RECEIVER SERVICES                                                                          ,Staff Payment,BA0000299888,57.60,
BEIS,The Insolvency Service,06/10/2016,Travel and Subsistence,OFFICIAL RECEIVER SERVICES                                                                          ,Staff Payment,BA0000299888,35.00,
BEIS,The Insolvency Service,06/10/2016,Travel and Subsistence,OFFICIAL RECEIVER SERVICES                                                                          ,Staff Payment,BA0000299888,3.40,
BEIS,The Insolvency Service,06/10/2016,Travel and Subsistence,OFFICIAL RECEIVER SERVICES                                                                          ,Staff Payment,BA0000299888,87.30,
BEIS,The Insolvency Service,06/10/2016,Travel and Subsistence,OFFICIAL RECEIVER SERVICES                                                                          ,Staff Payment,BA0000299888,31.50,
BEIS,The Insolvency Service,06/10/2016,Travel and Subsistence,OFFICIAL RECEIVER SERVICES                                                                          ,Staff Payment,BA0000299888,81.00,
BEIS,The Insolvency Service,06/10/2016,Travel and Subsistence,OFFICIAL RECEIVER SERVICES                                                                          ,Staff Payment,BA0000299888,36.00,
BEIS,The Insolvency Service,06/10/2016,Travel and Subsistence,OFFICIAL RECEIVER SERVICES                                                                          ,Staff Payment,BA0000299888,2.00,
BEIS,The Insolvency Service,06/10/2016,Travel and Subsistence,OFFICIAL RECEIVER SERVICES                                                                          ,Staff Payment,BA0000299888,4.50,
BEIS,The Insolvency Service,06/10/2016,Travel and Subsistence,OFFICIAL RECEIVER SERVICES                                                                          ,Staff Payment,BA0000299888,41.50,
BEIS,The Insolvency Service,06/10/2016,Travel and Subsistence,OFFICIAL RECEIVER SERVICES                                                                          ,Staff Payment,BA0000299888,1.50,
BEIS,The Insolvency Service,06/10/2016,Travel and Subsistence,OFFICIAL RECEIVER SERVICES                                                                          ,Staff Payment,BA0000299888,72.45,
BEIS,The Insolvency Service,06/10/2016,Travel and Subsistence,OFFICIAL RECEIVER SERVICES                                                                          ,Staff Payment,BA0000299888,7.20,
BEIS,The Insolvency Service,06/10/2016,Travel and Subsistence,OFFICIAL RECEIVER SERVICES                                                                          ,Staff Payment,BA0000299888,39.60,
BEIS,The Insolvency Service,06/10/2016,Travel and Subsistence,OFFICIAL RECEIVER SERVICES                                                                          ,Staff Payment,BA0000299888,2.25,
BEIS,The Insolvency Service,06/10/2016,Travel and Subsistence,OFFICIAL RECEIVER SERVICES                                                                          ,Staff Payment,BA0000299888,7.90,
BEIS,The Insolvency Service,06/10/2016,Travel and Subsistence,OFFICIAL RECEIVER SERVICES                                                                          ,Staff Payment,BA0000299888,50.20,
BEIS,The Insolvency Service,06/10/2016,Travel and Subsistence,OFFICIAL RECEIVER SERVICES                                                                          ,Staff Payment,BA0000299888,4.50,
BEIS,The Insolvency Service,06/10/2016,Travel and Subsistence,OFFICIAL RECEIVER SERVICES                                                                          ,Staff Payment,BA0000299888,10.00,
BEIS,The Insolvency Service,06/10/2016,Travel and Subsistence,OFFICIAL RECEIVER SERVICES                                                                          ,Staff Payment,BA0000299888,34.00,
BEIS,The Insolvency Service,06/10/2016,Travel and Subsistence,OFFICIAL RECEIVER SERVICES                                                                          ,Staff Payment,BA0000299888,116.10,
BEIS,The Insolvency Service,06/10/2016,Travel and Subsistence,OFFICIAL RECEIVER SERVICES                                                                          ,Staff Payment,BA0000299888,10.90,
BEIS,The Insolvency Service,06/10/2016,Travel and Subsistence,OFFICIAL RECEIVER SERVICES                                                                          ,Staff Payment,BA0000299888,49.00,
BEIS,The Insolvency Service,06/10/2016,Travel and Subsistence,OFFICIAL RECEIVER SERVICES                                                                          ,Staff Payment,BA0000299888,6.70,
BEIS,The Insolvency Service,06/10/2016,Travel and Subsistence,OFFICIAL RECEIVER SERVICES                                                                          ,Staff Payment,BA0000299888,83.70,
BEIS,The Insolvency Service,06/10/2016,Travel and Subsistence,OFFICIAL RECEIVER SERVICES                                                                          ,Staff Payment,BA0000299888,8.00,
BEIS,The Insolvency Service,06/10/2016,Travel and Subsistence,OFFICIAL RECEIVER SERVICES                                                                          ,Staff Payment,BA0000299888,40.05,
BEIS,The Insolvency Service,06/10/2016,Travel and Subsistence,OFFICIAL RECEIVER SERVICES                                                                          ,Staff Payment,BA0000299888,10.00,
BEIS,The Insolvency Service,06/10/2016,Travel and Subsistence,OFFICIAL RECEIVER SERVICES                                                                          ,Staff Payment,BA0000299888,6.00,
BEIS,The Insolvency Service,06/10/2016,Travel and Subsistence,OFFICIAL RECEIVER SERVICES                                                                          ,Staff Payment,BA0000299888,23.40,
BEIS,The Insolvency Service,06/10/2016,Travel and Subsistence,OFFICIAL RECEIVER SERVICES                                                                          ,Staff Payment,BA0000299888,12.00,
BEIS,The Insolvency Service,06/10/2016,Travel and Subsistence,OFFICIAL RECEIVER SERVICES                                                                          ,Staff Payment,BA0000299888,67.05,
BEIS,The Insolvency Service,06/10/2016,Travel and Subsistence,OFFICIAL RECEIVER SERVICES                                                                          ,Staff Payment,BA0000299888,196.60,
BEIS,The Insolvency Service,06/10/2016,Travel and Subsistence,OFFICIAL RECEIVER SERVICES                                                                          ,Staff Payment,BA0000299888,24.00,
BEIS,The Insolvency Service,06/10/2016,Travel and Subsistence,OFFICIAL RECEIVER SERVICES                                                                          ,Staff Payment,BA0000299888,24.00,
BEIS,The Insolvency Service,06/10/2016,Travel and Subsistence,OFFICIAL RECEIVER SERVICES                                                                          ,Staff Payment,BA0000299888,48.00,
BEIS,The Insolvency Service,06/10/2016,Travel and Subsistence,OFFICIAL RECEIVER SERVICES                                                                          ,Staff Payment,BA0000299888,44.10,
BEIS,The Insolvency Service,06/10/2016,Travel and Subsistence,BUSINESS SERVICES DIRECTORATE                                                                       ,Staff Payment,BA0000299888,31.40,
BEIS,The Insolvency Service,06/10/2016,Travel and Subsistence,OFFICIAL RECEIVER SERVICES                                                                          ,Staff Payment,BA0000299888,6.50,
BEIS,The Insolvency Service,06/10/2016,Travel and Subsistence,BUSINESS SERVICES DIRECTORATE                                                                       ,Staff Payment,BA0000299888,5.00,
BEIS,The Insolvency Service,06/10/2016,Travel and Subsistence,BUSINESS SERVICES DIRECTORATE                                                                       ,Staff Payment,BA0000299888,5.00,
BEIS,The Insolvency Service,06/10/2016,Travel and Subsistence,BUSINESS SERVICES DIRECTORATE                                                                       ,Staff Payment,BA0000299888,20.00,
BEIS,The Insolvency Service,06/10/2016,Travel and Subsistence,BUSINESS SERVICES DIRECTORATE                                                                       ,Staff Payment,BA0000299888,23.33,
BEIS,The Insolvency Service,06/10/2016,Travel and Subsistence,BUSINESS SERVICES DIRECTORATE                                                                       ,Staff Payment,BA0000299888,3.79,
BEIS,The Insolvency Service,06/10/2016,Travel and Subsistence,BUSINESS SERVICES DIRECTORATE                                                                       ,Staff Payment,BA0000299888,34.65,
BEIS,The Insolvency Service,06/10/2016,Travel and Subsistence,BUSINESS SERVICES DIRECTORATE                                                                       ,Staff Payment,BA0000299888,25.30,
BEIS,The Insolvency Service,06/10/2016,Travel and Subsistence,BUSINESS SERVICES DIRECTORATE                                                                       ,Staff Payment,BA0000299888,25.00,
BEIS,The Insolvency Service,06/10/2016,Travel and Subsistence,FINANCE AND COMMERCIAL,Staff Payment,BA0000299888,18.85,
BEIS,The Insolvency Service,06/10/2016,Travel and Subsistence,INVESTIGATIONS & ENFORCEMENT                                                                        ,Staff Payment,BA0000299888,9.79,
BEIS,The Insolvency Service,06/10/2016,Travel and Subsistence,INVESTIGATIONS & ENFORCEMENT                                                                        ,Staff Payment,BA0000299888,8.49,
BEIS,The Insolvency Service,06/10/2016,Travel and Subsistence,INVESTIGATIONS & ENFORCEMENT                                                                        ,Staff Payment,BA0000299888,12.69,
BEIS,The Insolvency Service,06/10/2016,Travel and Subsistence,OFFICIAL RECEIVER SERVICES                                                                          ,Staff Payment,BA0000299888,5.00,
BEIS,The Insolvency Service,06/10/2016,Travel and Subsistence,OFFICIAL RECEIVER SERVICES                                                                          ,Staff Payment,BA0000299888,5.00,
BEIS,The Insolvency Service,06/10/2016,Travel and Subsistence,OFFICIAL RECEIVER SERVICES                                                                          ,Staff Payment,BA0000299888,4.99,
BEIS,The Insolvency Service,06/10/2016,Travel and Subsistence,OFFICIAL RECEIVER SERVICES                                                                          ,Staff Payment,BA0000299888,45.10,
BEIS,The Insolvency Service,06/10/2016,Travel and Subsistence,OFFICIAL RECEIVER SERVICES                                                                          ,Staff Payment,BA0000299888,5.00,
BEIS,The Insolvency Service,06/10/2016,Travel and Subsistence,OFFICIAL RECEIVER SERVICES                                                                          ,Staff Payment,BA0000299888,5.00,
BEIS,The Insolvency Service,06/10/2016,Travel and Subsistence,OFFICIAL RECEIVER SERVICES                                                                          ,Staff Payment,BA0000299888,5.00,
BEIS,The Insolvency Service,06/10/2016,Travel and Subsistence,OFFICIAL RECEIVER SERVICES                                                                          ,Staff Payment,BA0000299888,9.59,
BEIS,The Insolvency Service,06/10/2016,Travel and Subsistence,OFFICIAL RECEIVER SERVICES                                                                          ,Staff Payment,BA0000299888,3.92,
BEIS,The Insolvency Service,06/10/2016,Travel and Subsistence,OFFICIAL RECEIVER SERVICES                                                                          ,Staff Payment,BA0000299888,25.00,
BEIS,The Insolvency Service,06/10/2016,Travel and Subsistence,OFFICIAL RECEIVER SERVICES                                                                          ,Staff Payment,BA0000299888,5.00,
BEIS,The Insolvency Service,06/10/2016,Travel and Subsistence,OFFICIAL RECEIVER SERVICES                                                                          ,Staff Payment,BA0000299888,5.00,
BEIS,The Insolvency Service,06/10/2016,Travel and Subsistence,OFFICIAL RECEIVER SERVICES                                                                          ,Staff Payment,BA0000299888,5.00,
BEIS,The Insolvency Service,06/10/2016,Travel and Subsistence,OFFICIAL RECEIVER SERVICES                                                                          ,Staff Payment,BA0000299888,9.90,
BEIS,The Insolvency Service,06/10/2016,Travel and Subsistence,OFFICIAL RECEIVER SERVICES                                                                          ,Staff Payment,BA0000299888,34.55,
BEIS,The Insolvency Service,06/10/2016,Travel and Subsistence,OFFICIAL RECEIVER SERVICES                                                                          ,Staff Payment,BA0000299888,51.45,
BEIS,The Insolvency Service,06/10/2016,Travel and Subsistence,OFFICIAL RECEIVER SERVICES                                                                          ,Staff Payment,BA0000299888,3.29,
BEIS,The Insolvency Service,06/10/2016,Travel and Subsistence,OFFICIAL RECEIVER SERVICES                                                                          ,Staff Payment,BA0000299888,27.95,
BEIS,The Insolvency Service,06/10/2016,Travel and Subsistence,OFFICIAL RECEIVER SERVICES                                                                          ,Staff Payment,BA0000299888,4.50,
BEIS,The Insolvency Service,06/10/2016,Travel and Subsistence,OFFICIAL RECEIVER SERVICES                                                                          ,Staff Payment,BA0000299888,29.45,
BEIS,The Insolvency Service,06/10/2016,Travel and Subsistence,OFFICIAL RECEIVER SERVICES                                                                          ,Staff Payment,BA0000299888,4.73,
BEIS,The Insolvency Service,06/10/2016,Travel and Subsistence,OFFICIAL RECEIVER SERVICES                                                                          ,Staff Payment,BA0000299888,30.00,
BEIS,The Insolvency Service,06/10/2016,Travel and Subsistence,OFFICIAL RECEIVER SERVICES                                                                          ,Staff Payment,BA0000299888,4.64,
BEIS,The Insolvency Service,06/10/2016,Travel and Subsistence,OFFICIAL RECEIVER SERVICES                                                                          ,Staff Payment,BA0000299888,42.35,
BEIS,The Insolvency Service,06/10/2016,Travel and Subsistence,PEOPLE & CAPABILITY                                                                                 ,Staff Payment,BA0000299888,5.00,
BEIS,The Insolvency Service,06/10/2016,Insolvency Case Related Costs,INVESTIGATIONS & ENFORCEMENT                                                                        ,Staff Payment,BA0000299888,7.00,
BEIS,The Insolvency Service,06/10/2016,Investigation and Enforcement Costs,OFFICIAL RECEIVER SERVICES                                                                          ,Staff Payment,BA0000299888,28.00,
BEIS,The Insolvency Service,06/10/2016,Insolvency Case Related Costs,OFFICIAL RECEIVER SERVICES                                                                          ,THE STATIONERY OFFICE LTD,BA0000299887,209.70,662774703
BEIS,The Insolvency Service,06/10/2016,Postage,FINANCE AND COMMERCIAL                                                                              ,TNT UK LTD,BA0000299862,8.54,354715057
BEIS,The Insolvency Service,07/10/2016,Employee Related Costs,PEOPLE & CAPABILITY                                                                                 ,ASSOCIATION OF CHIEF EXECUTIVES                             ,BA0000299925,625.00,
BEIS,The Insolvency Service,07/10/2016,Computer and IT Systems,INFORMATION TECHNOLOGY                                                                              ,ATOS IT SERVICES UK LTD,BA0000299911,"10,504.93",
BEIS,The Insolvency Service,07/10/2016,Investigation and Enforcement Costs,INVESTIGATIONS & ENFORCEMENT                                                                        ,DWF                                                         ,BA0000299913,"31,431.97",
BEIS,The Insolvency Service,07/10/2016,Investigation and Enforcement Costs,INVESTIGATIONS & ENFORCEMENT                                                                        ,DWF                                                         ,BA0000299914,"9,216.50",
BEIS,The Insolvency Service,07/10/2016,Accommodation,FINANCE AND COMMERCIAL,GIANT WORLDWIDE LTD                                         ,BA0000299929,538.84,
BEIS,The Insolvency Service,07/10/2016,Training Costs,FINANCE AND COMMERCIAL,KYPERA LTD,BA0000299898,"1,028.63",813905437
BEIS,The Insolvency Service,07/10/2016,Office Supplies and Services,OFFICIAL RECEIVER SERVICES                                                                          ,NEOPOST LIMITED (CONSUMABLES),BA0000299899,114.48,597265489
BEIS,The Insolvency Service,07/10/2016,Insolvency Case Related Costs,FINANCE AND COMMERCIAL                                                                              ,SIRS (EUROPE) LTD,BA0000299909,"12,150.00",990834974
BEIS,The Insolvency Service,07/10/2016,Travel and Subsistence,FINANCE AND COMMERCIAL                                                                              ,Staff Payment,BA0000299908,4.10,
BEIS,The Insolvency Service,07/10/2016,Travel and Subsistence,INFORMATION TECHNOLOGY                                                                              ,Staff Payment,BA0000299908,7.20,
BEIS,The Insolvency Service,07/10/2016,Travel and Subsistence,P&C - Talent                                                                                        ,Staff Payment,BA0000299908,153.00,
BEIS,The Insolvency Service,07/10/2016,Travel and Subsistence,FINANCE AND COMMERCIAL                                                                              ,Staff Payment,BA0000299908,7.70,
BEIS,The Insolvency Service,07/10/2016,Travel and Subsistence,FINANCE AND COMMERCIAL                                                                              ,Staff Payment,BA0000299908,8.10,
BEIS,The Insolvency Service,07/10/2016,Travel and Subsistence,INFORMATION TECHNOLOGY                                                                              ,Staff Payment,BA0000299908,13.50,
BEIS,The Insolvency Service,07/10/2016,Travel and Subsistence,PEOPLE & CAPABILITY                                                                                 ,Staff Payment,BA0000299908,30.00,
BEIS,The Insolvency Service,07/10/2016,Travel and Subsistence,INFORMATION TECHNOLOGY                                                                              ,Staff Payment,BA0000299908,30.00,
BEIS,The Insolvency Service,07/10/2016,Travel and Subsistence,P&C - Talent                                                                                        ,Staff Payment,BA0000299908,10.75,
BEIS,The Insolvency Service,07/10/2016,Travel and Subsistence,PEOPLE & CAPABILITY                                                                                 ,Staff Payment,BA0000299908,7.68,
BEIS,The Insolvency Service,07/10/2016,Travel and Subsistence,PEOPLE & CAPABILITY                                                                                 ,Staff Payment,BA0000299908,15.00,
BEIS,The Insolvency Service,07/10/2016,Travel and Subsistence,BUSINESS SERVICES DIRECTORATE                                                                       ,Staff Payment,BA0000299908,12.00,
BEIS,The Insolvency Service,07/10/2016,Travel and Subsistence,BUSINESS SERVICES DIRECTORATE                                                                       ,Staff Payment,BA0000299908,168.00,
BEIS,The Insolvency Service,07/10/2016,Travel and Subsistence,INVESTIGATIONS & ENFORCEMENT                                                                        ,Staff Payment,BA0000299908,54.00,
BEIS,The Insolvency Service,07/10/2016,Travel and Subsistence,INVESTIGATIONS & ENFORCEMENT                                                                        ,Staff Payment,BA0000299908,118.80,
BEIS,The Insolvency Service,07/10/2016,Travel and Subsistence,OFFICIAL RECEIVER SERVICES                                                                          ,Staff Payment,BA0000299908,5.00,
BEIS,The Insolvency Service,07/10/2016,Travel and Subsistence,OFFICIAL RECEIVER SERVICES                                                                          ,Staff Payment,BA0000299908,37.35,
BEIS,The Insolvency Service,07/10/2016,Travel and Subsistence,OFFICIAL RECEIVER SERVICES                                                                          ,Staff Payment,BA0000299908,5.50,
BEIS,The Insolvency Service,07/10/2016,Travel and Subsistence,OFFICIAL RECEIVER SERVICES                                                                          ,Staff Payment,BA0000299908,14.85,
BEIS,The Insolvency Service,07/10/2016,Travel and Subsistence,OFFICIAL RECEIVER SERVICES                                                                          ,Staff Payment,BA0000299908,229.50,
BEIS,The Insolvency Service,07/10/2016,Travel and Subsistence,OFFICIAL RECEIVER SERVICES                                                                          ,Staff Payment,BA0000299908,8.00,
BEIS,The Insolvency Service,07/10/2016,Travel and Subsistence,OFFICIAL RECEIVER SERVICES                                                                          ,Staff Payment,BA0000299908,35.55,
BEIS,The Insolvency Service,07/10/2016,Travel and Subsistence,OFFICIAL RECEIVER SERVICES                                                                          ,Staff Payment,BA0000299908,10.00,
BEIS,The Insolvency Service,07/10/2016,Travel and Subsistence,OFFICIAL RECEIVER SERVICES                                                                          ,Staff Payment,BA0000299908,17.00,
BEIS,The Insolvency Service,07/10/2016,Travel and Subsistence,OFFICIAL RECEIVER SERVICES                                                                          ,Staff Payment,BA0000299908,112.10,
BEIS,The Insolvency Service,07/10/2016,Travel and Subsistence,OFFICIAL RECEIVER SERVICES                                                                          ,Staff Payment,BA0000299908,23.00,
BEIS,The Insolvency Service,07/10/2016,Travel and Subsistence,PEOPLE & CAPABILITY                                                                                 ,Staff Payment,BA0000299908,5.00,
BEIS,The Insolvency Service,07/10/2016,Employee Related Costs,PEOPLE & CAPABILITY                                                                                 ,Staff Payment,BA0000299908,130.00,
BEIS,The Insolvency Service,10/10/2016,Investigation and Enforcement Costs,INVESTIGATIONS & ENFORCEMENT                                                                        ,BOND DICKINSON                                              ,BA0000299922,"13,176.18",123392627
BEIS,The Insolvency Service,10/10/2016,Investigation and Enforcement Costs,INVESTIGATIONS & ENFORCEMENT                                                                        ,BOND DICKINSON                                              ,BA0000299922,"67,078.87",123392627
BEIS,The Insolvency Service,10/10/2016,Accommodation,ESTATES,BRITISH GAS BUSINESS,BA0000299919,698.48,684966762
BEIS,The Insolvency Service,10/10/2016,Accommodation,ESTATES,BRITISH GAS BUSINESS,BA0000299920,229.72,684966762
BEIS,The Insolvency Service,10/10/2016,Accommodation,ESTATES,BRITISH GAS BUSINESS,BA0000299921,19.60,684966762
BEIS,The Insolvency Service,10/10/2016,Training Costs,PEOPLE & CAPABILITY                                                                                 ,CAPITA BUSINESS SERVICES LTD,BA0000299939,"7,975.61",618184140
BEIS,The Insolvency Service,10/10/2016,Insolvency Case Related Costs,OFFICIAL RECEIVER SERVICES                                                                          ,COMPANIES HOUSE,BA0000299924,4.00,GD255
BEIS,The Insolvency Service,10/10/2016,Insolvency Case Related Costs,OFFICIAL RECEIVER SERVICES                                                                          ,COMPANIES HOUSE,BA0000299927,4.00,GD255
BEIS,The Insolvency Service,10/10/2016,Agency Workers,INFORMATION TECHNOLOGY                                                                              ,CONCEPT INFORMATION TECHNOLOGY LTD                          ,BA0000299930,"2,448.00",776147892
BEIS,The Insolvency Service,10/10/2016,Agency Workers,INFORMATION TECHNOLOGY                                                                              ,CONCEPT INFORMATION TECHNOLOGY LTD                          ,BA0000299931,"1,950.00",776147892
BEIS,The Insolvency Service,10/10/2016,Computer and IT Systems,CUSTOMER AND COMMUNICATIONS                                                                         ,GOVDELIVERY INC                                             ,BA0000299918,763.20,
BEIS,The Insolvency Service,10/10/2016,Investigation and Enforcement Costs,INVESTIGATIONS & ENFORCEMENT                                                                        ,GOVERNMENT LEGAL DEPARTMENT                                 ,BA0000299923,125.00,888823066
BEIS,The Insolvency Service,10/10/2016,Insolvency Case Related Costs,OFFICIAL RECEIVER SERVICES                                                                          ,HPI LTD,BA0000299928,7.07,942407139
BEIS,The Insolvency Service,10/10/2016,Accommodation,OFFICIAL RECEIVER SERVICES                                                                          ,SCOTTISH POWER,BA0000299932,892.22,659372008
BEIS,The Insolvency Service,10/10/2016,Computer and IT Systems,INFORMATION TECHNOLOGY                                                                              ,THALES UK Ltd. (L&J),BA0000299934,"70,409.76",198955680
BEIS,The Insolvency Service,10/10/2016,Computer and IT Systems,INFORMATION TECHNOLOGY                                                                              ,VODAFONE - CABLE & WIRELESS COMMUNICATIONS,BA0000299933,"12,205.57",232303710
BEIS,The Insolvency Service,11/10/2016,Telecoms,CUSTOMER AND COMMUNICATIONS                                                                         ,BT CONFERENCING SERVICES,BA0000299950,38.48,245719348
BEIS,The Insolvency Service,11/10/2016,Telecoms,FINANCE AND COMMERCIAL,BT CONFERENCING SERVICES,BA0000299950,1.99,245719348
BEIS,The Insolvency Service,11/10/2016,Telecoms,FINANCE AND COMMERCIAL                                                                              ,BT CONFERENCING SERVICES,BA0000299950,34.14,245719348
BEIS,The Insolvency Service,11/10/2016,Telecoms,FINANCE AND COMMERCIAL                                                                              ,BT CONFERENCING SERVICES,BA0000299950,36.60,245719348
BEIS,The Insolvency Service,11/10/2016,Telecoms,FINANCE AND COMMERCIAL                                                                              ,BT CONFERENCING SERVICES,BA0000299950,39.12,245719348
BEIS,The Insolvency Service,11/10/2016,Telecoms,FINANCE AND COMMERCIAL                                                                              ,BT CONFERENCING SERVICES,BA0000299950,47.50,245719348
BEIS,The Insolvency Service,11/10/2016,Telecoms,FINANCE AND COMMERCIAL                                                                              ,BT CONFERENCING SERVICES,BA0000299950,159.86,245719348
BEIS,The Insolvency Service,11/10/2016,Telecoms,FINANCE AND COMMERCIAL                                                                              ,BT CONFERENCING SERVICES,BA0000299950,257.22,245719348
BEIS,The Insolvency Service,11/10/2016,Telecoms,INFORMATION TECHNOLOGY                                                                              ,BT CONFERENCING SERVICES,BA0000299950,45.55,245719348
BEIS,The Insolvency Service,11/10/2016,Telecoms,INFORMATION TECHNOLOGY                                                                              ,BT CONFERENCING SERVICES,BA0000299950,292.76,245719348
BEIS,The Insolvency Service,11/10/2016,Telecoms,INVESTIGATIONS & ENFORCEMENT                                                                        ,BT CONFERENCING SERVICES,BA0000299950,6.91,245719348
BEIS,The Insolvency Service,11/10/2016,Telecoms,INVESTIGATIONS & ENFORCEMENT                                                                        ,BT CONFERENCING SERVICES,BA0000299950,16.06,245719348
BEIS,The Insolvency Service,11/10/2016,Telecoms,INVESTIGATIONS & ENFORCEMENT                                                                        ,BT CONFERENCING SERVICES,BA0000299950,27.91,245719348
BEIS,The Insolvency Service,11/10/2016,Telecoms,INVESTIGATIONS & ENFORCEMENT                                                                        ,BT CONFERENCING SERVICES,BA0000299950,62.87,245719348
BEIS,The Insolvency Service,11/10/2016,Telecoms,INVESTIGATIONS & ENFORCEMENT                                                                        ,BT CONFERENCING SERVICES,BA0000299950,68.00,245719348
BEIS,The Insolvency Service,11/10/2016,Telecoms,OFFICIAL RECEIVER SERVICES                                                                          ,BT CONFERENCING SERVICES,BA0000299950,0.04,245719348
BEIS,The Insolvency Service,11/10/2016,Telecoms,OFFICIAL RECEIVER SERVICES                                                                          ,BT CONFERENCING SERVICES,BA0000299950,0.06,245719348
BEIS,The Insolvency Service,11/10/2016,Telecoms,OFFICIAL RECEIVER SERVICES                                                                          ,BT CONFERENCING SERVICES,BA0000299950,0.80,245719348
BEIS,The Insolvency Service,11/10/2016,Telecoms,OFFICIAL RECEIVER SERVICES                                                                          ,BT CONFERENCING SERVICES,BA0000299950,3.26,245719348
BEIS,The Insolvency Service,11/10/2016,Telecoms,OFFICIAL RECEIVER SERVICES                                                                          ,BT CONFERENCING SERVICES,BA0000299950,3.52,245719348
BEIS,The Insolvency Service,11/10/2016,Telecoms,OFFICIAL RECEIVER SERVICES                                                                          ,BT CONFERENCING SERVICES,BA0000299950,4.28,245719348
BEIS,The Insolvency Service,11/10/2016,Telecoms,OFFICIAL RECEIVER SERVICES                                                                          ,BT CONFERENCING SERVICES,BA0000299950,6.22,245719348
BEIS,The Insolvency Service,11/10/2016,Telecoms,OFFICIAL RECEIVER SERVICES                                                                          ,BT CONFERENCING SERVICES,BA0000299950,6.98,245719348
BEIS,The Insolvency Service,11/10/2016,Telecoms,OFFICIAL RECEIVER SERVICES                                                                          ,BT CONFERENCING SERVICES,BA0000299950,7.61,245719348
BEIS,The Insolvency Service,11/10/2016,Telecoms,OFFICIAL RECEIVER SERVICES                                                                          ,BT CONFERENCING SERVICES,BA0000299950,7.94,245719348
BEIS,The Insolvency Service,11/10/2016,Telecoms,OFFICIAL RECEIVER SERVICES                                                                          ,BT CONFERENCING SERVICES,BA0000299950,10.03,245719348
BEIS,The Insolvency Service,11/10/2016,Telecoms,OFFICIAL RECEIVER SERVICES                                                                          ,BT CONFERENCING SERVICES,BA0000299950,11.70,245719348
BEIS,The Insolvency Service,11/10/2016,Telecoms,OFFICIAL RECEIVER SERVICES                                                                          ,BT CONFERENCING SERVICES,BA0000299950,11.87,245719348
BEIS,The Insolvency Service,11/10/2016,Telecoms,OFFICIAL RECEIVER SERVICES                                                                          ,BT CONFERENCING SERVICES,BA0000299950,13.00,245719348
BEIS,The Insolvency Service,11/10/2016,Telecoms,OFFICIAL RECEIVER SERVICES                                                                          ,BT CONFERENCING SERVICES,BA0000299950,14.33,245719348
BEIS,The Insolvency Service,11/10/2016,Telecoms,OFFICIAL RECEIVER SERVICES                                                                          ,BT CONFERENCING SERVICES,BA0000299950,14.86,245719348
BEIS,The Insolvency Service,11/10/2016,Telecoms,OFFICIAL RECEIVER SERVICES                                                                          ,BT CONFERENCING SERVICES,BA0000299950,23.66,245719348
BEIS,The Insolvency Service,11/10/2016,Telecoms,OFFICIAL RECEIVER SERVICES                                                                          ,BT CONFERENCING SERVICES,BA0000299950,31.20,245719348
BEIS,The Insolvency Service,11/10/2016,Telecoms,OFFICIAL RECEIVER SERVICES                                                                          ,BT CONFERENCING SERVICES,BA0000299950,56.96,245719348
BEIS,The Insolvency Service,11/10/2016,Telecoms,P&C - People Relations                                                                              ,BT CONFERENCING SERVICES,BA0000299950,2.90,245719348
BEIS,The Insolvency Service,11/10/2016,Telecoms,PROJECTS                                                                                            ,BT CONFERENCING SERVICES,BA0000299950,2.41,245719348
BEIS,The Insolvency Service,11/10/2016,Telecoms,STRATEGY                                                                                            ,BT CONFERENCING SERVICES,BA0000299950,8.18,245719348
BEIS,The Insolvency Service,11/10/2016,Training Costs,PEOPLE & CAPABILITY                                                                                 ,CAPITA BUSINESS SERVICES LTD,BA0000299966,"1,904.00",618184140
BEIS,The Insolvency Service,11/10/2016,Insolvency Case Related Costs,INVESTIGATIONS & ENFORCEMENT                                                                        ,COMPANIES HOUSE,BA0000299962,13.00,GD255
BEIS,The Insolvency Service,11/10/2016,Insolvency Case Related Costs,INVESTIGATIONS & ENFORCEMENT                                                                        ,COMPANIES HOUSE,BA0000299963,37.00,GD255
BEIS,The Insolvency Service,11/10/2016,Insolvency Case Related Costs,INVESTIGATIONS & ENFORCEMENT                                                                        ,COMPANIES HOUSE,BA0000299967,20.00,GD255
BEIS,The Insolvency Service,11/10/2016,Insolvency Case Related Costs,OFFICIAL RECEIVER SERVICES                                                                          ,COMPANIES HOUSE,BA0000299946,4.00,GD255
BEIS,The Insolvency Service,11/10/2016,Investigation and Enforcement Costs,INVESTIGATIONS & ENFORCEMENT                                                                        ,DWF                                                         ,BA0000299968,"1,397.50",
BEIS,The Insolvency Service,11/10/2016,Investigation and Enforcement Costs,INVESTIGATIONS & ENFORCEMENT                                                                        ,DWF                                                         ,BA0000299971,"2,525.78",
BEIS,The Insolvency Service,11/10/2016,Investigation and Enforcement Costs,INVESTIGATIONS & ENFORCEMENT                                                                        ,DWF                                                         ,BA0000299970,83.00,
BEIS,The Insolvency Service,11/10/2016,Investigation and Enforcement Costs,INVESTIGATIONS & ENFORCEMENT                                                                        ,DWF                                                         ,BA0000299969,"20,494.09",
BEIS,The Insolvency Service,11/10/2016,Investigation and Enforcement Costs,OFFICIAL RECEIVER SERVICES                                                                          ,HMCTS,BA0000299943,308.00,
BEIS,The Insolvency Service,11/10/2016,Investigation and Enforcement Costs,OFFICIAL RECEIVER SERVICES                                                                          ,HMCTS,BA0000299942,308.00,
BEIS,The Insolvency Service,11/10/2016,Investigation and Enforcement Costs,OFFICIAL RECEIVER SERVICES                                                                          ,HMCTS,BA0000299945,308.00,
BEIS,The Insolvency Service,11/10/2016,Insolvency Case Related Costs,OFFICIAL RECEIVER SERVICES                                                                          ,HPI LTD,BA0000299976,8.50,942407139
BEIS,The Insolvency Service,11/10/2016,Accommodation,ESTATES,LAND REGISTRY TELFORD,BA0000299957,855.47,
BEIS,The Insolvency Service,11/10/2016,Agency Workers,P&C - People Relations                                                                              ,MICHAEL PAGE INTERNATIONAL RECRUITMENT LTD,BA0000299974,647.50,354259936
BEIS,The Insolvency Service,11/10/2016,Accommodation,ESTATES,MIDDLESBROUGH COUNCIL                                       ,BA0000299975,344.70,734213854
BEIS,The Insolvency Service,11/10/2016,Investigation and Enforcement Costs,OFFICIAL RECEIVER SERVICES                                                                          ,REGISTRAR OF COMPANIES,BA0000299944,300.00,
BEIS,The Insolvency Service,11/10/2016,Postage,OFFICIAL RECEIVER SERVICES                                                                          ,ROYAL MAIL GROUP LTD - RESPONSE SERVICES)                   ,BA0000299953,84.51,243170002
BEIS,The Insolvency Service,11/10/2016,Postage,OFFICIAL RECEIVER SERVICES                                                                          ,ROYAL MAIL GROUP LTD - RESPONSE SERVICES)                   ,BA0000299972,15.58,243170002
BEIS,The Insolvency Service,11/10/2016,Postage,OFFICIAL RECEIVER SERVICES                                                                          ,ROYAL MAIL GROUP LTD - RESPONSE SERVICES)                   ,BA0000299952,91.30,243170002
BEIS,The Insolvency Service,11/10/2016,Investigation and Enforcement Costs,INVESTIGATIONS & ENFORCEMENT                                                                        ,SHEPHERD & WEDDERBURN WS (ENGLISH CASES)                    ,BA0000299973,"17,582.80",890559386
BEIS,The Insolvency Service,11/10/2016,Investigation and Enforcement Costs,INVESTIGATIONS & ENFORCEMENT                                                                        ,SHEPHERD & WEDDERBURN WS (ENGLISH CASES)                    ,BA0000299973,578.55,890559386
BEIS,The Insolvency Service,11/10/2016,Investigation and Enforcement Costs,INVESTIGATIONS & ENFORCEMENT                                                                        ,SHEPHERD & WEDDERBURN WS (ENGLISH CASES)                    ,BA0000299973,"6,914.06",890559386
BEIS,The Insolvency Service,11/10/2016,Insolvency Case Related Costs,OFFICIAL RECEIVER SERVICES                                                                          ,THE STATIONERY OFFICE LTD,BA0000299964,139.80,662774703
BEIS,The Insolvency Service,11/10/2016,Insolvency Case Related Costs,OFFICIAL RECEIVER SERVICES                                                                          ,THE STATIONERY OFFICE LTD,BA0000299965,139.80,662774703
BEIS,The Insolvency Service,11/10/2016,Postage,BUSINESS SERVICES DIRECTORATE                                                                       ,TNT UK LTD,BA0000299959,8.52,354715057
BEIS,The Insolvency Service,11/10/2016,Postage,BUSINESS SERVICES DIRECTORATE                                                                       ,TNT UK LTD,BA0000299960,8.54,354715057
BEIS,The Insolvency Service,11/10/2016,Telecoms,INFORMATION TECHNOLOGY                                                                              ,VODAFONE - CABLE & WIRELESS COMMUNICATIONS,BA0000299961,"3,255.16",232303710
BEIS,The Insolvency Service,12/10/2016,Agency Workers,FINANCE AND COMMERCIAL                                                                              ,ALLEN LANE LIMITED,BA0000299994,"2,505.06",835970985
BEIS,The Insolvency Service,12/10/2016,Agency Workers,FINANCE AND COMMERCIAL                                                                              ,ALLEN LANE LIMITED,BA0000299995,"1,776.20",835970985
BEIS,The Insolvency Service,12/10/2016,Telecoms,INFORMATION TECHNOLOGY                                                                              ,BT CONFERENCING SERVICES,BA0000299990,"1,178.08",245719348
BEIS,The Insolvency Service,12/10/2016,Insolvency Case Related Costs,OFFICIAL RECEIVER SERVICES                                                                          ,COMPANIES HOUSE,BA0000299986,4.00,GD255
BEIS,The Insolvency Service,12/10/2016,Telecoms,INFORMATION TECHNOLOGY                                                                              ,EE LTD (AIR TIME)                                           ,BA0000299989,"6,122.72",771592016
BEIS,The Insolvency Service,12/10/2016,Insolvency Case Related Costs,FINANCE AND COMMERCIAL                                                                              ,EQUIFAX LTD                                                 ,BA0000299978,132.00,
BEIS,The Insolvency Service,12/10/2016,Investigation and Enforcement Costs,OFFICIAL RECEIVER SERVICES                                                                          ,HMCTS,BA0000299979,308.00,
BEIS,The Insolvency Service,12/10/2016,Investigation and Enforcement Costs,OFFICIAL RECEIVER SERVICES                                                                          ,HMCTS,BA0000299980,528.00,
BEIS,The Insolvency Service,12/10/2016,Redact Compensation and Losses,Insolvency Case Related Costs,INSOLVENCY SERVICE,BA0000299981,492.78,
BEIS,The Insolvency Service,12/10/2016,Investigation and Enforcement Costs,INVESTIGATIONS & ENFORCEMENT                                                                        ,K INTERNATIONAL PLC,BA0000299984,"1,902.00",600413800
BEIS,The Insolvency Service,12/10/2016,Accommodation,ESTATES,LAND REGISTRY TELFORD,BA0000299982,"1,105.49",
BEIS,The Insolvency Service,12/10/2016,Accommodation,ESTATES,LAND REGISTRY TELFORD,BA0000299983,"1,105.49",
BEIS,The Insolvency Service,12/10/2016,Accommodation,ESTATES,MARITIME & COASTGUARD AGENCY,BA0000299987,"21,326.63",
BEIS,The Insolvency Service,12/10/2016,Accommodation,ESTATES,MARITIME & COASTGUARD AGENCY,BA0000299987,"13,400.00",
BEIS,The Insolvency Service,12/10/2016,Training Costs,INVESTIGATIONS & ENFORCEMENT                                                                        ,SAGE (UK LIMITED),BA0000299988,"5,202.00",
BEIS,The Insolvency Service,12/10/2016,Telecoms,BUSINESS SERVICES DIRECTORATE                                                                       ,SYNTEC LTD                                                  ,BA0000299991,393.59,810309963
BEIS,The Insolvency Service,12/10/2016,Telecoms,BUSINESS SERVICES DIRECTORATE                                                                       ,TIMICO LIMITED                                              ,BA0000299992,"2,660.20",852368804
BEIS,The Insolvency Service,13/10/2016,Agency Workers,FINANCE AND COMMERCIAL                                                                              ,ALLEN LANE LIMITED,BA0000299998,"5,010.12",835970985
BEIS,The Insolvency Service,13/10/2016,Agency Workers,FINANCE AND COMMERCIAL                                                                              ,ALLEN LANE LIMITED,BA0000300000,"2,505.06",835970985
BEIS,The Insolvency Service,13/10/2016,Agency Workers,FINANCE AND COMMERCIAL                                                                              ,ALLEN LANE LIMITED,BA0000300001,"2,960.34",835970985
BEIS,The Insolvency Service,13/10/2016,Agency Workers,FINANCE AND COMMERCIAL                                                                              ,ALLEN LANE LIMITED,BA0000300002,"2,960.34",835970985
BEIS,The Insolvency Service,13/10/2016,Agency Workers,FINANCE AND COMMERCIAL                                                                              ,ALLEN LANE LIMITED,BA0000300025,"2,960.34",835970985
BEIS,The Insolvency Service,13/10/2016,Investigation and Enforcement Costs,INVESTIGATIONS & ENFORCEMENT                                                                        ,BOND DICKINSON                                              ,BA0000300026,"5,000.00",123392627
BEIS,The Insolvency Service,13/10/2016,Computer and IT Systems,INFORMATION TECHNOLOGY                                                                              ,BOTTOMLINE TECHNOLOGIES,BA0000300024,500.00,724548231
BEIS,The Insolvency Service,13/10/2016,Insolvency Case Related Costs,OFFICIAL RECEIVER SERVICES                                                                          ,COMPANIES HOUSE,BA0000300010,4.00,GD255
BEIS,The Insolvency Service,13/10/2016,Insolvency Case Related Costs,OFFICIAL RECEIVER SERVICES                                                                          ,COMPANIES HOUSE,BA0000300019,4.00,GD255
BEIS,The Insolvency Service,13/10/2016,Postage,INFORMATION TECHNOLOGY                                                                              ,DX NETWORK SERVICES LTD,BA0000300016,237.08,849741385
BEIS,The Insolvency Service,13/10/2016,Postage,OFFICIAL RECEIVER SERVICES                                                                          ,DX NETWORK SERVICES LTD,BA0000300016,11.01,849741385
BEIS,The Insolvency Service,13/10/2016,Postage,OFFICIAL RECEIVER SERVICES                                                                          ,DX NETWORK SERVICES LTD,BA0000300016,97.23,849741385
BEIS,The Insolvency Service,13/10/2016,Postage,OFFICIAL RECEIVER SERVICES                                                                          ,DX NETWORK SERVICES LTD,BA0000300016,140.75,849741385
BEIS,The Insolvency Service,13/10/2016,Postage,OFFICIAL RECEIVER SERVICES                                                                          ,DX NETWORK SERVICES LTD,BA0000300016,159.06,849741385
BEIS,The Insolvency Service,13/10/2016,Postage,OFFICIAL RECEIVER SERVICES                                                                          ,DX NETWORK SERVICES LTD,BA0000300016,211.36,849741385
BEIS,The Insolvency Service,13/10/2016,Postage,OFFICIAL RECEIVER SERVICES                                                                          ,DX NETWORK SERVICES LTD,BA0000300016,258.19,849741385
BEIS,The Insolvency Service,13/10/2016,Postage,OFFICIAL RECEIVER SERVICES                                                                          ,DX NETWORK SERVICES LTD,BA0000300016,260.20,849741385
BEIS,The Insolvency Service,13/10/2016,Postage,OFFICIAL RECEIVER SERVICES                                                                          ,DX NETWORK SERVICES LTD,BA0000300016,265.21,849741385
BEIS,The Insolvency Service,13/10/2016,Postage,OFFICIAL RECEIVER SERVICES                                                                          ,DX NETWORK SERVICES LTD,BA0000300016,308.12,849741385
BEIS,The Insolvency Service,13/10/2016,Postage,OFFICIAL RECEIVER SERVICES                                                                          ,DX NETWORK SERVICES LTD,BA0000300016,322.25,849741385
BEIS,The Insolvency Service,13/10/2016,Postage,OFFICIAL RECEIVER SERVICES                                                                          ,DX NETWORK SERVICES LTD,BA0000300016,328.78,849741385
BEIS,The Insolvency Service,13/10/2016,Postage,OFFICIAL RECEIVER SERVICES                                                                          ,DX NETWORK SERVICES LTD,BA0000300016,334.24,849741385
BEIS,The Insolvency Service,13/10/2016,Postage,OFFICIAL RECEIVER SERVICES                                                                          ,DX NETWORK SERVICES LTD,BA0000300016,375.28,849741385
BEIS,The Insolvency Service,13/10/2016,Postage,OFFICIAL RECEIVER SERVICES                                                                          ,DX NETWORK SERVICES LTD,BA0000300016,509.41,849741385
BEIS,The Insolvency Service,13/10/2016,Postage,OFFICIAL RECEIVER SERVICES                                                                          ,DX NETWORK SERVICES LTD,BA0000300016,532.97,849741385
BEIS,The Insolvency Service,13/10/2016,Postage,OFFICIAL RECEIVER SERVICES                                                                          ,DX NETWORK SERVICES LTD,BA0000300016,"1,146.43",849741385
BEIS,The Insolvency Service,13/10/2016,Postage,OFFICIAL RECEIVER SERVICES                                                                          ,DX NETWORK SERVICES LTD,BA0000300027,98.98,849741385
BEIS,The Insolvency Service,13/10/2016,Postage,OFFICIAL RECEIVER SERVICES                                                                          ,DX NETWORK SERVICES LTD,BA0000300028,122.38,849741385
BEIS,The Insolvency Service,13/10/2016,Postage,OFFICIAL RECEIVER SERVICES                                                                          ,DX NETWORK SERVICES LTD,BA0000300030,172.01,849741385
BEIS,The Insolvency Service,13/10/2016,Telecoms,INFORMATION TECHNOLOGY                                                                              ,GAMMA BUSINESS COMMUNICATIONS LTD,BA0000300011,"2,686.32",823820344
BEIS,The Insolvency Service,13/10/2016,Legal Costs,BUSINESS SERVICES DIRECTORATE                                                                       ,GOVERNMENT LEGAL DEPARTMENT                                 ,BA0000299999,"3,639.40",888823066
BEIS,The Insolvency Service,13/10/2016,Legal Costs,BUSINESS SERVICES DIRECTORATE                                                                       ,GOVERNMENT LEGAL DEPARTMENT                                 ,BA0000300003,"5,380.00",888823066
BEIS,The Insolvency Service,13/10/2016,Legal Costs,BUSINESS SERVICES DIRECTORATE                                                                       ,GOVERNMENT LEGAL DEPARTMENT                                 ,BA0000300004,"1,447.61",888823066
BEIS,The Insolvency Service,13/10/2016,Accommodation,ESTATES,GVA                                                         ,BA0000300015,"2,204.19",657719590
BEIS,The Insolvency Service,13/10/2016,Agency Workers,INFORMATION TECHNOLOGY                                                                              ,HAYS SPECIALIST RECRUITMENT LTD,BA0000300017,"3,012.00",773695871
BEIS,The Insolvency Service,13/10/2016,Computer and IT Systems,INFORMATION TECHNOLOGY                                                                              ,KDS UK LTD,BA0000300012,"2,786.40",776463881
BEIS,The Insolvency Service,13/10/2016,Investigation and Enforcement Costs,INVESTIGATIONS & ENFORCEMENT                                                                        ,MD5 LTD                                                     ,BA0000300029,"15,750.00",
BEIS,The Insolvency Service,13/10/2016,Employee Related Costs,BUSINESS SERVICES DIRECTORATE                                                                       ,ONLINE ERGONOMICS,BA0000300013,730.27,807348719
BEIS,The Insolvency Service,13/10/2016,Employee Related Costs,PEOPLE & CAPABILITY                                                                                 ,POSTURITE (UK) LTD.,BA0000300023,12.19,
BEIS,The Insolvency Service,13/10/2016,Employee Related Costs,PEOPLE & CAPABILITY                                                                                 ,POSTURITE (UK) LTD.,BA0000300023,48.91,
BEIS,The Insolvency Service,13/10/2016,Travel and Subsistence,FINANCE AND COMMERCIAL,Staff Payment,BA0000299997,93.50,
BEIS,The Insolvency Service,13/10/2016,Travel and Subsistence,INVESTIGATIONS & ENFORCEMENT                                                                        ,Staff Payment,BA0000300014,20.00,
BEIS,The Insolvency Service,13/10/2016,Travel and Subsistence,P&C - Talent                                                                                        ,Staff Payment,BA0000299997,100.83,
BEIS,The Insolvency Service,13/10/2016,Travel and Subsistence,FINANCE AND COMMERCIAL,Staff Payment,BA0000299997,24.00,
BEIS,The Insolvency Service,13/10/2016,Travel and Subsistence,P&C - Talent                                                                                        ,Staff Payment,BA0000299997,29.70,
BEIS,The Insolvency Service,13/10/2016,Travel and Subsistence,INFORMATION TECHNOLOGY                                                                              ,Staff Payment,BA0000299997,15.00,
BEIS,The Insolvency Service,13/10/2016,Travel and Subsistence,INFORMATION TECHNOLOGY                                                                              ,Staff Payment,BA0000299997,33.00,
BEIS,The Insolvency Service,13/10/2016,Travel and Subsistence,INFORMATION TECHNOLOGY                                                                              ,Staff Payment,BA0000299997,14.70,
BEIS,The Insolvency Service,13/10/2016,Travel and Subsistence,P&C - Talent                                                                                        ,Staff Payment,BA0000299997,11.00,
BEIS,The Insolvency Service,13/10/2016,Travel and Subsistence,PEOPLE & CAPABILITY                                                                                 ,Staff Payment,BA0000300014,34.98,
BEIS,The Insolvency Service,13/10/2016,Travel and Subsistence,FINANCE AND COMMERCIAL,Staff Payment,BA0000299997,2.70,
BEIS,The Insolvency Service,13/10/2016,Travel and Subsistence,FINANCE AND COMMERCIAL,Staff Payment,BA0000299997,16.70,
BEIS,The Insolvency Service,13/10/2016,Travel and Subsistence,INFORMATION TECHNOLOGY                                                                              ,Staff Payment,BA0000299997,4.75,
BEIS,The Insolvency Service,13/10/2016,Travel and Subsistence,INFORMATION TECHNOLOGY                                                                              ,Staff Payment,BA0000299997,7.28,
BEIS,The Insolvency Service,13/10/2016,Travel and Subsistence,INFORMATION TECHNOLOGY                                                                              ,Staff Payment,BA0000300014,5.00,
BEIS,The Insolvency Service,13/10/2016,Travel and Subsistence,OFFICIAL RECEIVER SERVICES                                                                          ,Staff Payment,BA0000300014,4.79,
BEIS,The Insolvency Service,13/10/2016,Travel and Subsistence,P&C - Talent                                                                                        ,Staff Payment,BA0000299997,4.95,
BEIS,The Insolvency Service,13/10/2016,Travel and Subsistence,INFORMATION TECHNOLOGY                                                                              ,Staff Payment,BA0000299997,39.90,
BEIS,The Insolvency Service,13/10/2016,Travel and Subsistence,INFORMATION TECHNOLOGY                                                                              ,Staff Payment,BA0000299997,28.80,
BEIS,The Insolvency Service,13/10/2016,Travel and Subsistence,INVESTIGATIONS & ENFORCEMENT                                                                        ,Staff Payment,BA0000299997,3.00,
BEIS,The Insolvency Service,13/10/2016,Travel and Subsistence,INVESTIGATIONS & ENFORCEMENT                                                                        ,Staff Payment,BA0000299997,4.80,
BEIS,The Insolvency Service,13/10/2016,Travel and Subsistence,INVESTIGATIONS & ENFORCEMENT                                                                        ,Staff Payment,BA0000299997,4.40,
BEIS,The Insolvency Service,13/10/2016,Travel and Subsistence,INVESTIGATIONS & ENFORCEMENT                                                                        ,Staff Payment,BA0000300014,2.40,
BEIS,The Insolvency Service,13/10/2016,Travel and Subsistence,INVESTIGATIONS & ENFORCEMENT                                                                        ,Staff Payment,BA0000300014,4.80,
BEIS,The Insolvency Service,13/10/2016,Travel and Subsistence,PEOPLE & CAPABILITY                                                                                 ,Staff Payment,BA0000299997,3.30,
BEIS,The Insolvency Service,13/10/2016,Travel and Subsistence,BUSINESS SERVICES DIRECTORATE                                                                       ,Staff Payment,BA0000299997,130.95,
BEIS,The Insolvency Service,13/10/2016,Travel and Subsistence,INVESTIGATIONS & ENFORCEMENT                                                                        ,Staff Payment,BA0000299997,7.00,
BEIS,The Insolvency Service,13/10/2016,Travel and Subsistence,INVESTIGATIONS & ENFORCEMENT                                                                        ,Staff Payment,BA0000299997,96.75,
BEIS,The Insolvency Service,13/10/2016,Travel and Subsistence,INVESTIGATIONS & ENFORCEMENT                                                                        ,Staff Payment,BA0000299997,4.50,
BEIS,The Insolvency Service,13/10/2016,Travel and Subsistence,INVESTIGATIONS & ENFORCEMENT                                                                        ,Staff Payment,BA0000299997,36.00,
BEIS,The Insolvency Service,13/10/2016,Travel and Subsistence,INVESTIGATIONS & ENFORCEMENT                                                                        ,Staff Payment,BA0000299997,183.75,
BEIS,The Insolvency Service,13/10/2016,Travel and Subsistence,INVESTIGATIONS & ENFORCEMENT                                                                        ,Staff Payment,BA0000299997,32.55,
BEIS,The Insolvency Service,13/10/2016,Travel and Subsistence,INVESTIGATIONS & ENFORCEMENT                                                                        ,Staff Payment,BA0000299997,40.05,
BEIS,The Insolvency Service,13/10/2016,Travel and Subsistence,INVESTIGATIONS & ENFORCEMENT                                                                        ,Staff Payment,BA0000300014,9.90,
BEIS,The Insolvency Service,13/10/2016,Travel and Subsistence,INVESTIGATIONS & ENFORCEMENT                                                                        ,Staff Payment,BA0000300014,12.00,
BEIS,The Insolvency Service,13/10/2016,Travel and Subsistence,INVESTIGATIONS & ENFORCEMENT                                                                        ,Staff Payment,BA0000300014,9.90,
BEIS,The Insolvency Service,13/10/2016,Travel and Subsistence,INVESTIGATIONS & ENFORCEMENT                                                                        ,Staff Payment,BA0000300014,12.00,
BEIS,The Insolvency Service,13/10/2016,Travel and Subsistence,OFFICIAL RECEIVER SERVICES                                                                          ,Staff Payment,BA0000299997,2.00,
BEIS,The Insolvency Service,13/10/2016,Travel and Subsistence,OFFICIAL RECEIVER SERVICES                                                                          ,Staff Payment,BA0000299997,48.00,
BEIS,The Insolvency Service,13/10/2016,Travel and Subsistence,OFFICIAL RECEIVER SERVICES                                                                          ,Staff Payment,BA0000299997,2.00,
BEIS,The Insolvency Service,13/10/2016,Travel and Subsistence,OFFICIAL RECEIVER SERVICES                                                                          ,Staff Payment,BA0000299997,34.20,
BEIS,The Insolvency Service,13/10/2016,Travel and Subsistence,OFFICIAL RECEIVER SERVICES                                                                          ,Staff Payment,BA0000299997,81.00,
BEIS,The Insolvency Service,13/10/2016,Travel and Subsistence,OFFICIAL RECEIVER SERVICES                                                                          ,Staff Payment,BA0000299997,15.50,
BEIS,The Insolvency Service,13/10/2016,Travel and Subsistence,OFFICIAL RECEIVER SERVICES                                                                          ,Staff Payment,BA0000299997,49.50,
BEIS,The Insolvency Service,13/10/2016,Travel and Subsistence,OFFICIAL RECEIVER SERVICES                                                                          ,Staff Payment,BA0000299997,8.60,
BEIS,The Insolvency Service,13/10/2016,Travel and Subsistence,OFFICIAL RECEIVER SERVICES                                                                          ,Staff Payment,BA0000299997,41.50,
BEIS,The Insolvency Service,13/10/2016,Travel and Subsistence,OFFICIAL RECEIVER SERVICES                                                                          ,Staff Payment,BA0000299997,3.10,
BEIS,The Insolvency Service,13/10/2016,Travel and Subsistence,OFFICIAL RECEIVER SERVICES                                                                          ,Staff Payment,BA0000299997,14.85,
BEIS,The Insolvency Service,13/10/2016,Travel and Subsistence,OFFICIAL RECEIVER SERVICES                                                                          ,Staff Payment,BA0000299997,6.60,
BEIS,The Insolvency Service,13/10/2016,Travel and Subsistence,OFFICIAL RECEIVER SERVICES                                                                          ,Staff Payment,BA0000299997,38.70,
BEIS,The Insolvency Service,13/10/2016,Travel and Subsistence,OFFICIAL RECEIVER SERVICES                                                                          ,Staff Payment,BA0000299997,15.10,
BEIS,The Insolvency Service,13/10/2016,Travel and Subsistence,OFFICIAL RECEIVER SERVICES                                                                          ,Staff Payment,BA0000299997,21.00,
BEIS,The Insolvency Service,13/10/2016,Travel and Subsistence,OFFICIAL RECEIVER SERVICES                                                                          ,Staff Payment,BA0000299997,2.00,
BEIS,The Insolvency Service,13/10/2016,Travel and Subsistence,OFFICIAL RECEIVER SERVICES                                                                          ,Staff Payment,BA0000299997,15.30,
BEIS,The Insolvency Service,13/10/2016,Travel and Subsistence,OFFICIAL RECEIVER SERVICES                                                                          ,Staff Payment,BA0000299997,40.50,
BEIS,The Insolvency Service,13/10/2016,Travel and Subsistence,OFFICIAL RECEIVER SERVICES                                                                          ,Staff Payment,BA0000299997,9.90,
BEIS,The Insolvency Service,13/10/2016,Travel and Subsistence,OFFICIAL RECEIVER SERVICES                                                                          ,Staff Payment,BA0000299997,11.50,
BEIS,The Insolvency Service,13/10/2016,Travel and Subsistence,OFFICIAL RECEIVER SERVICES                                                                          ,Staff Payment,BA0000299997,54.00,
BEIS,The Insolvency Service,13/10/2016,Travel and Subsistence,OFFICIAL RECEIVER SERVICES                                                                          ,Staff Payment,BA0000299997,129.60,
BEIS,The Insolvency Service,13/10/2016,Travel and Subsistence,OFFICIAL RECEIVER SERVICES                                                                          ,Staff Payment,BA0000299997,5.40,
BEIS,The Insolvency Service,13/10/2016,Travel and Subsistence,OFFICIAL RECEIVER SERVICES                                                                          ,Staff Payment,BA0000299997,6.12,
BEIS,The Insolvency Service,13/10/2016,Travel and Subsistence,OFFICIAL RECEIVER SERVICES                                                                          ,Staff Payment,BA0000300014,3.00,
BEIS,The Insolvency Service,13/10/2016,Travel and Subsistence,OFFICIAL RECEIVER SERVICES                                                                          ,Staff Payment,BA0000300014,12.00,
BEIS,The Insolvency Service,13/10/2016,Travel and Subsistence,OFFICIAL RECEIVER SERVICES                                                                          ,Staff Payment,BA0000300014,3.00,
BEIS,The Insolvency Service,13/10/2016,Travel and Subsistence,OFFICIAL RECEIVER SERVICES                                                                          ,Staff Payment,BA0000300014,3.60,
BEIS,The Insolvency Service,13/10/2016,Travel and Subsistence,OFFICIAL RECEIVER SERVICES                                                                          ,Staff Payment,BA0000300014,3.60,
BEIS,The Insolvency Service,13/10/2016,Travel and Subsistence,PEOPLE & CAPABILITY                                                                                 ,Staff Payment,BA0000299997,18.00,
BEIS,The Insolvency Service,13/10/2016,Travel and Subsistence,PEOPLE & CAPABILITY                                                                                 ,Staff Payment,BA0000299997,18.00,
BEIS,The Insolvency Service,13/10/2016,Travel and Subsistence,PEOPLE & CAPABILITY                                                                                 ,Staff Payment,BA0000299997,18.00,
BEIS,The Insolvency Service,13/10/2016,Travel and Subsistence,PEOPLE & CAPABILITY                                                                                 ,Staff Payment,BA0000299997,18.00,
BEIS,The Insolvency Service,13/10/2016,Travel and Subsistence,OFFICIAL RECEIVER SERVICES                                                                          ,Staff Payment,BA0000299997,3.40,
BEIS,The Insolvency Service,13/10/2016,Travel and Subsistence,OFFICIAL RECEIVER SERVICES                                                                          ,Staff Payment,BA0000299997,18.50,
BEIS,The Insolvency Service,13/10/2016,Travel and Subsistence,PEOPLE & CAPABILITY                                                                                 ,Staff Payment,BA0000299997,20.00,
BEIS,The Insolvency Service,13/10/2016,Travel and Subsistence,EXTERNAL AFFAIRS                                                                                    ,Staff Payment,BA0000300014,29.69,
BEIS,The Insolvency Service,13/10/2016,Travel and Subsistence,INFORMATION TECHNOLOGY                                                                              ,Staff Payment,BA0000299997,37.57,
BEIS,The Insolvency Service,13/10/2016,Travel and Subsistence,INVESTIGATIONS & ENFORCEMENT                                                                        ,Staff Payment,BA0000299997,4.85,
BEIS,The Insolvency Service,13/10/2016,Travel and Subsistence,INVESTIGATIONS & ENFORCEMENT                                                                        ,Staff Payment,BA0000299997,8.04,
BEIS,The Insolvency Service,13/10/2016,Travel and Subsistence,INVESTIGATIONS & ENFORCEMENT                                                                        ,Staff Payment,BA0000299997,4.39,
BEIS,The Insolvency Service,13/10/2016,Travel and Subsistence,INVESTIGATIONS & ENFORCEMENT                                                                        ,Staff Payment,BA0000299997,27.99,
BEIS,The Insolvency Service,13/10/2016,Travel and Subsistence,INVESTIGATIONS & ENFORCEMENT                                                                        ,Staff Payment,BA0000299997,20.00,
BEIS,The Insolvency Service,13/10/2016,Travel and Subsistence,INVESTIGATIONS & ENFORCEMENT                                                                        ,Staff Payment,BA0000299997,8.00,
BEIS,The Insolvency Service,13/10/2016,Travel and Subsistence,INVESTIGATIONS & ENFORCEMENT                                                                        ,Staff Payment,BA0000300014,4.79,
BEIS,The Insolvency Service,13/10/2016,Travel and Subsistence,INVESTIGATIONS & ENFORCEMENT                                                                        ,Staff Payment,BA0000300014,4.95,
BEIS,The Insolvency Service,13/10/2016,Travel and Subsistence,OFFICIAL RECEIVER SERVICES                                                                          ,Staff Payment,BA0000299997,4.99,
BEIS,The Insolvency Service,13/10/2016,Travel and Subsistence,OFFICIAL RECEIVER SERVICES                                                                          ,Staff Payment,BA0000299997,19.09,
BEIS,The Insolvency Service,13/10/2016,Travel and Subsistence,OFFICIAL RECEIVER SERVICES                                                                          ,Staff Payment,BA0000299997,10.00,
BEIS,The Insolvency Service,13/10/2016,Travel and Subsistence,OFFICIAL RECEIVER SERVICES                                                                          ,Staff Payment,BA0000299997,18.34,
BEIS,The Insolvency Service,13/10/2016,Travel and Subsistence,OFFICIAL RECEIVER SERVICES                                                                          ,Staff Payment,BA0000299997,5.00,
BEIS,The Insolvency Service,13/10/2016,Travel and Subsistence,OFFICIAL RECEIVER SERVICES                                                                          ,Staff Payment,BA0000299997,19.49,
BEIS,The Insolvency Service,13/10/2016,Travel and Subsistence,OFFICIAL RECEIVER SERVICES                                                                          ,Staff Payment,BA0000300014,6.35,
BEIS,The Insolvency Service,13/10/2016,Travel and Subsistence,OFFICIAL RECEIVER SERVICES                                                                          ,Staff Payment,BA0000300014,3.29,
BEIS,The Insolvency Service,13/10/2016,Travel and Subsistence,OFFICIAL RECEIVER SERVICES                                                                          ,Staff Payment,BA0000300014,4.00,
BEIS,The Insolvency Service,13/10/2016,Travel and Subsistence,OFFICIAL RECEIVER SERVICES                                                                          ,Staff Payment,BA0000300014,4.50,
BEIS,The Insolvency Service,13/10/2016,Travel and Subsistence,PEOPLE & CAPABILITY                                                                                 ,Staff Payment,BA0000299997,4.94,
BEIS,The Insolvency Service,13/10/2016,Travel and Subsistence,PEOPLE & CAPABILITY                                                                                 ,Staff Payment,BA0000299997,5.00,
BEIS,The Insolvency Service,13/10/2016,Office Supplies and Services,PEOPLE & CAPABILITY                                                                                 ,Staff Payment,BA0000299997,7.85,
BEIS,The Insolvency Service,13/10/2016,Insolvency Case Related Costs,OFFICIAL RECEIVER SERVICES                                                                          ,THE STATIONERY OFFICE LTD,BA0000300020,69.90,662774703
BEIS,The Insolvency Service,13/10/2016,Insolvency Case Related Costs,OFFICIAL RECEIVER SERVICES                                                                          ,THE STATIONERY OFFICE LTD,BA0000300021,209.70,662774703
BEIS,The Insolvency Service,13/10/2016,Insolvency Case Related Costs,OFFICIAL RECEIVER SERVICES                                                                          ,THE STATIONERY OFFICE LTD,BA0000300022,209.70,662774703
BEIS,The Insolvency Service,14/10/2016,Accommodation,FINANCE AND COMMERCIAL                                                                              ,BANNER BUSINESS SERVICES Ltd.,BA0000300057,"1,222.55",731860439
BEIS,The Insolvency Service,14/10/2016,Accommodation,FINANCE AND COMMERCIAL                                                                              ,BANNER BUSINESS SERVICES Ltd.,BA0000300058,25.20,731860439
BEIS,The Insolvency Service,14/10/2016,Accommodation,FINANCE AND COMMERCIAL                                                                              ,BANNER BUSINESS SERVICES Ltd.,BA0000300058,73.26,731860439
BEIS,The Insolvency Service,14/10/2016,Accommodation,FINANCE AND COMMERCIAL                                                                              ,BANNER BUSINESS SERVICES Ltd.,BA0000300058,594.00,731860439
BEIS,The Insolvency Service,14/10/2016,Accommodation,OFFICIAL RECEIVER SERVICES                                                                          ,BANNER BUSINESS SERVICES Ltd.,BA0000300054,13.43,731860439
BEIS,The Insolvency Service,14/10/2016,Accommodation,OFFICIAL RECEIVER SERVICES                                                                          ,BANNER BUSINESS SERVICES Ltd.,BA0000300055,8.75,731860439
BEIS,The Insolvency Service,14/10/2016,Accommodation,OFFICIAL RECEIVER SERVICES                                                                          ,BANNER BUSINESS SERVICES Ltd.,BA0000300058,15.48,731860439
BEIS,The Insolvency Service,14/10/2016,Accommodation,OFFICIAL RECEIVER SERVICES                                                                          ,BANNER BUSINESS SERVICES Ltd.,BA0000300058,18.30,731860439
BEIS,The Insolvency Service,14/10/2016,Accommodation,OFFICIAL RECEIVER SERVICES                                                                          ,BANNER BUSINESS SERVICES Ltd.,BA0000300058,21.60,731860439
BEIS,The Insolvency Service,14/10/2016,Accommodation,OFFICIAL RECEIVER SERVICES                                                                          ,BANNER BUSINESS SERVICES Ltd.,BA0000300058,27.00,731860439
BEIS,The Insolvency Service,14/10/2016,Accommodation,OFFICIAL RECEIVER SERVICES                                                                          ,BANNER BUSINESS SERVICES Ltd.,BA0000300058,32.50,731860439
BEIS,The Insolvency Service,14/10/2016,Accommodation,OFFICIAL RECEIVER SERVICES                                                                          ,BANNER BUSINESS SERVICES Ltd.,BA0000300058,34.20,731860439
BEIS,The Insolvency Service,14/10/2016,Accommodation,OFFICIAL RECEIVER SERVICES                                                                          ,BANNER BUSINESS SERVICES Ltd.,BA0000300058,36.00,731860439
BEIS,The Insolvency Service,14/10/2016,Accommodation,OFFICIAL RECEIVER SERVICES                                                                          ,BANNER BUSINESS SERVICES Ltd.,BA0000300058,36.20,731860439
BEIS,The Insolvency Service,14/10/2016,Accommodation,OFFICIAL RECEIVER SERVICES                                                                          ,BANNER BUSINESS SERVICES Ltd.,BA0000300058,41.40,731860439
BEIS,The Insolvency Service,14/10/2016,Accommodation,OFFICIAL RECEIVER SERVICES                                                                          ,BANNER BUSINESS SERVICES Ltd.,BA0000300058,41.70,731860439
BEIS,The Insolvency Service,14/10/2016,Accommodation,OFFICIAL RECEIVER SERVICES                                                                          ,BANNER BUSINESS SERVICES Ltd.,BA0000300058,61.20,731860439
BEIS,The Insolvency Service,14/10/2016,Accommodation,OFFICIAL RECEIVER SERVICES                                                                          ,BANNER BUSINESS SERVICES Ltd.,BA0000300058,359.33,731860439
BEIS,The Insolvency Service,14/10/2016,Accommodation,ESTATES,BIS - DEPT. FOR BUSINESS INNOVATION & SKILLS,BA0000300040,"290,943.00",888825550
BEIS,The Insolvency Service,14/10/2016,Accommodation,ESTATES,BIS - DEPT. FOR BUSINESS INNOVATION & SKILLS,BA0000300040,"239,784.00",888825550
BEIS,The Insolvency Service,14/10/2016,Accommodation,ESTATES,BIS - DEPT. FOR BUSINESS INNOVATION & SKILLS,BA0000300038,"55,223.45",888825550
BEIS,The Insolvency Service,14/10/2016,Employee Related Costs,FINANCE AND COMMERCIAL                                                                              ,BIS - DEPT. FOR BUSINESS INNOVATION & SKILLS,BA0000300039,600.00,888825550
BEIS,The Insolvency Service,14/10/2016,Agency Workers,FINANCE AND COMMERCIAL,BROOK STREET (UK) LTD,BA0000300049,"25,115.93",
BEIS,The Insolvency Service,14/10/2016,Training Costs,OFFICIAL RECEIVER SERVICES                                                                          ,CAET - CERTIFIED ACCOUNTANTS EDUCATIONAL TRUST,BA0000300059,240.00,
BEIS,The Insolvency Service,14/10/2016,Agency Workers,INFORMATION TECHNOLOGY                                                                              ,CONCEPT INFORMATION TECHNOLOGY LTD                          ,BA0000300050,"1,950.00",776147892
BEIS,The Insolvency Service,14/10/2016,Agency Workers,INFORMATION TECHNOLOGY                                                                              ,CONCEPT INFORMATION TECHNOLOGY LTD                          ,BA0000300051,"3,060.00",776147892
BEIS,The Insolvency Service,14/10/2016,Computer and IT Systems,INFORMATION TECHNOLOGY                                                                              ,DAISY DATA CENTRE SOLUTIONS LIMITED,BA0000300060,"4,529.12",156929175
BEIS,The Insolvency Service,14/10/2016,Computer and IT Systems,INFORMATION TECHNOLOGY                                                                              ,DAISY DATA CENTRE SOLUTIONS LIMITED,BA0000300060,"4,941.98",156929175
BEIS,The Insolvency Service,14/10/2016,Computer and IT Systems,INFORMATION TECHNOLOGY                                                                              ,DAISY DATA CENTRE SOLUTIONS LIMITED,BA0000300060,"19,808.99",156929175
BEIS,The Insolvency Service,14/10/2016,Accommodation,ESTATES                                                                                             ,LAND REGISTRY TELFORD,BA0000300045,"20,350.33",
BEIS,The Insolvency Service,14/10/2016,Accommodation,ESTATES                                                                                             ,LAND REGISTRY TELFORD,BA0000300045,"48,859.51",
BEIS,The Insolvency Service,14/10/2016,Office Supplies and Services,OFFICIAL RECEIVER SERVICES                                                                          ,NEOPOST LIMITED (CONSUMABLES),BA0000300048,158.99,597265489
BEIS,The Insolvency Service,14/10/2016,Postage,FINANCE AND COMMERCIAL                                                                              ,ROYAL MAIL GROUP LTD - RESPONSE SERVICES)                   ,BA0000300044,"1,035.70",243170002
BEIS,The Insolvency Service,14/10/2016,Accommodation,ESTATES,SCOTTISH POWER,BA0000300047,875.12,659372008
BEIS,The Insolvency Service,14/10/2016,Employee Related Costs,FINANCE AND COMMERCIAL                                                                              ,SPECSAVERS OPTICAL GROUP                                    ,BA0000300041,128.00,520011330
BEIS,The Insolvency Service,14/10/2016,Employee Related Costs,FINANCE AND COMMERCIAL                                                                              ,SPECSAVERS OPTICAL GROUP                                    ,BA0000300042,270.00,520011330
BEIS,The Insolvency Service,14/10/2016,Employee Related Costs,FINANCE AND COMMERCIAL                                                                              ,SPECSAVERS OPTICAL GROUP                                    ,BA0000300043,165.00,520011330
BEIS,The Insolvency Service,14/10/2016,Travel and Subsistence,FINANCE AND COMMERCIAL                                                                              ,Staff Payment,BA0000300036,95.00,
BEIS,The Insolvency Service,14/10/2016,Travel and Subsistence,FINANCE AND COMMERCIAL                                                                              ,Staff Payment,BA0000300036,95.00,
BEIS,The Insolvency Service,14/10/2016,Travel and Subsistence,FINANCE AND COMMERCIAL                                                                              ,Staff Payment,BA0000300036,60.30,
BEIS,The Insolvency Service,14/10/2016,Travel and Subsistence,FINANCE AND COMMERCIAL                                                                              ,Staff Payment,BA0000300036,48.10,
BEIS,The Insolvency Service,14/10/2016,Travel and Subsistence,FINANCE AND COMMERCIAL                                                                              ,Staff Payment,BA0000300036,13.50,
BEIS,The Insolvency Service,14/10/2016,Travel and Subsistence,FINANCE AND COMMERCIAL                                                                              ,Staff Payment,BA0000300036,18.00,
BEIS,The Insolvency Service,14/10/2016,Travel and Subsistence,FINANCE AND COMMERCIAL                                                                              ,Staff Payment,BA0000300036,13.50,
BEIS,The Insolvency Service,14/10/2016,Travel and Subsistence,FINANCE AND COMMERCIAL                                                                              ,Staff Payment,BA0000300036,18.00,
BEIS,The Insolvency Service,14/10/2016,Travel and Subsistence,FINANCE AND COMMERCIAL                                                                              ,Staff Payment,BA0000300036,30.00,
BEIS,The Insolvency Service,14/10/2016,Travel and Subsistence,BUSINESS SERVICES DIRECTORATE                                                                       ,Staff Payment,BA0000300036,10.80,
BEIS,The Insolvency Service,14/10/2016,Travel and Subsistence,OFFICIAL RECEIVER SERVICES                                                                          ,Staff Payment,BA0000300036,7.00,
BEIS,The Insolvency Service,14/10/2016,Travel and Subsistence,OFFICIAL RECEIVER SERVICES                                                                          ,Staff Payment,BA0000300036,12.50,
BEIS,The Insolvency Service,14/10/2016,Travel and Subsistence,OFFICIAL RECEIVER SERVICES                                                                          ,Staff Payment,BA0000300036,69.50,
BEIS,The Insolvency Service,14/10/2016,Travel and Subsistence,OFFICIAL RECEIVER SERVICES                                                                          ,Staff Payment,BA0000300036,36.00,
BEIS,The Insolvency Service,14/10/2016,Travel and Subsistence,OFFICIAL RECEIVER SERVICES                                                                          ,Staff Payment,BA0000300036,70.20,
BEIS,The Insolvency Service,14/10/2016,Travel and Subsistence,BUSINESS SERVICES DIRECTORATE                                                                       ,Staff Payment,BA0000300036,30.00,
BEIS,The Insolvency Service,14/10/2016,Travel and Subsistence,BUSINESS SERVICES DIRECTORATE                                                                       ,Staff Payment,BA0000300036,34.94,
BEIS,The Insolvency Service,14/10/2016,Travel and Subsistence,BUSINESS SERVICES DIRECTORATE                                                                       ,Staff Payment,BA0000300036,22.45,
BEIS,The Insolvency Service,14/10/2016,Travel and Subsistence,BUSINESS SERVICES DIRECTORATE                                                                       ,Staff Payment,BA0000300036,9.19,
BEIS,The Insolvency Service,14/10/2016,Travel and Subsistence,OFFICIAL RECEIVER SERVICES                                                                          ,Staff Payment,BA0000300036,11.79,
BEIS,The Insolvency Service,14/10/2016,Travel and Subsistence,OFFICIAL RECEIVER SERVICES                                                                          ,Staff Payment,BA0000300036,18.20,
BEIS,The Insolvency Service,14/10/2016,Travel and Subsistence,OFFICIAL RECEIVER SERVICES                                                                          ,Staff Payment,BA0000300036,5.00,
BEIS,The Insolvency Service,14/10/2016,Travel and Subsistence,OFFICIAL RECEIVER SERVICES                                                                          ,Staff Payment,BA0000300036,8.83,
BEIS,The Insolvency Service,14/10/2016,Office Supplies and Services,FINANCE AND COMMERCIAL                                                                              ,Staff Payment,BA0000300036,10.80,
BEIS,The Insolvency Service,14/10/2016,Telecoms,INFORMATION TECHNOLOGY                                                                              ,VODAFONE - CABLE & WIRELESS COMMUNICATIONS,BA0000300053,585.40,232303710
BEIS,The Insolvency Service,17/10/2016,Computer and IT Systems,INFORMATION TECHNOLOGY                                                                              ,ATOS IT SERVICES UK LTD,BA0000300063,"2,403.15",
BEIS,The Insolvency Service,17/10/2016,Insolvency Case Related Costs,OFFICIAL RECEIVER SERVICES                                                                          ,COMPANIES HOUSE,BA0000300108,4.00,GD255
BEIS,The Insolvency Service,17/10/2016,Accommodation,ESTATES,CORONA ENERGY RETAIL 4 LIMITED,BA0000300100,54.33,714232961
BEIS,The Insolvency Service,17/10/2016,Accommodation,ESTATES,CORONA ENERGY RETAIL 4 LIMITED,BA0000300102,58.49,714232961
BEIS,The Insolvency Service,17/10/2016,Accommodation,ESTATES,CORONA ENERGY RETAIL 4 LIMITED,BA0000300103,18.27,714232961
BEIS,The Insolvency Service,17/10/2016,Accommodation,ESTATES,CORONA ENERGY RETAIL 4 LIMITED,BA0000300104,20.34,714232961
BEIS,The Insolvency Service,17/10/2016,Accommodation,ESTATES,CORONA ENERGY RETAIL 4 LIMITED,BA0000300105,237.59,714232961
BEIS,The Insolvency Service,17/10/2016,Accommodation,ESTATES,CORONA ENERGY RETAIL 4 LIMITED,BA0000300106,34.06,714232961
BEIS,The Insolvency Service,17/10/2016,Accommodation,ESTATES,DEPARTMENT FOR WORK & PENSIONS,BA0000300118,"8,774.09",888815554
BEIS,The Insolvency Service,17/10/2016,Accommodation,ESTATES,E.ON,BA0000300120,144.64,559097889
BEIS,The Insolvency Service,17/10/2016,Legal Costs,P&C - People Relations                                                                              ,GOVERNMENT LEGAL DEPARTMENT                                 ,BA0000300119,64.80,888823066
BEIS,The Insolvency Service,17/10/2016,Investigation and Enforcement Costs,OFFICIAL RECEIVER SERVICES                                                                          ,HMCTS,BA0000300046,308.00,
BEIS,The Insolvency Service,17/10/2016,Agency Workers,P&C - People Relations                                                                              ,MICHAEL PAGE INTERNATIONAL RECRUITMENT LTD,BA0000300096,653.22,354259936
BEIS,The Insolvency Service,17/10/2016,Travel and Subsistence,FINANCE AND COMMERCIAL                                                                              ,Staff Payment,BA0000299908,4.10,
BEIS,The Insolvency Service,17/10/2016,Travel and Subsistence,INFORMATION TECHNOLOGY                                                                              ,Staff Payment,BA0000299908,7.20,
BEIS,The Insolvency Service,17/10/2016,Travel and Subsistence,P&C - Talent                                                                                        ,Staff Payment,BA0000299908,153.00,
BEIS,The Insolvency Service,17/10/2016,Travel and Subsistence,FINANCE AND COMMERCIAL                                                                              ,Staff Payment,BA0000299908,7.70,
BEIS,The Insolvency Service,17/10/2016,Travel and Subsistence,FINANCE AND COMMERCIAL                                                                              ,Staff Payment,BA0000299908,8.10,
BEIS,The Insolvency Service,17/10/2016,Travel and Subsistence,INFORMATION TECHNOLOGY                                                                              ,Staff Payment,BA0000299908,13.50,
BEIS,The Insolvency Service,17/10/2016,Travel and Subsistence,PEOPLE & CAPABILITY                                                                                 ,Staff Payment,BA0000299908,30.00,
BEIS,The Insolvency Service,17/10/2016,Travel and Subsistence,INFORMATION TECHNOLOGY                                                                              ,Staff Payment,BA0000299908,30.00,
BEIS,The Insolvency Service,17/10/2016,Travel and Subsistence,P&C - Talent                                                                                        ,Staff Payment,BA0000299908,10.75,
BEIS,The Insolvency Service,17/10/2016,Travel and Subsistence,PEOPLE & CAPABILITY                                                                                 ,Staff Payment,BA0000299908,7.68,
BEIS,The Insolvency Service,17/10/2016,Travel and Subsistence,PEOPLE & CAPABILITY                                                                                 ,Staff Payment,BA0000299908,15.00,
BEIS,The Insolvency Service,17/10/2016,Travel and Subsistence,BUSINESS SERVICES DIRECTORATE                                                                       ,Staff Payment,BA0000299908,12.00,
BEIS,The Insolvency Service,17/10/2016,Travel and Subsistence,BUSINESS SERVICES DIRECTORATE                                                                       ,Staff Payment,BA0000299908,168.00,
BEIS,The Insolvency Service,17/10/2016,Travel and Subsistence,INVESTIGATIONS & ENFORCEMENT                                                                        ,Staff Payment,BA0000299908,54.00,
BEIS,The Insolvency Service,17/10/2016,Travel and Subsistence,INVESTIGATIONS & ENFORCEMENT                                                                        ,Staff Payment,BA0000299908,118.80,
BEIS,The Insolvency Service,17/10/2016,Travel and Subsistence,OFFICIAL RECEIVER SERVICES                                                                          ,Staff Payment,BA0000299908,5.00,
BEIS,The Insolvency Service,17/10/2016,Travel and Subsistence,OFFICIAL RECEIVER SERVICES                                                                          ,Staff Payment,BA0000299908,37.35,
BEIS,The Insolvency Service,17/10/2016,Travel and Subsistence,OFFICIAL RECEIVER SERVICES                                                                          ,Staff Payment,BA0000299908,5.50,
BEIS,The Insolvency Service,17/10/2016,Travel and Subsistence,OFFICIAL RECEIVER SERVICES                                                                          ,Staff Payment,BA0000299908,14.85,
BEIS,The Insolvency Service,17/10/2016,Travel and Subsistence,OFFICIAL RECEIVER SERVICES                                                                          ,Staff Payment,BA0000299908,229.50,
BEIS,The Insolvency Service,17/10/2016,Travel and Subsistence,OFFICIAL RECEIVER SERVICES                                                                          ,Staff Payment,BA0000299908,8.00,
BEIS,The Insolvency Service,17/10/2016,Travel and Subsistence,OFFICIAL RECEIVER SERVICES                                                                          ,Staff Payment,BA0000299908,35.55,
BEIS,The Insolvency Service,17/10/2016,Travel and Subsistence,OFFICIAL RECEIVER SERVICES                                                                          ,Staff Payment,BA0000299908,10.00,
BEIS,The Insolvency Service,17/10/2016,Travel and Subsistence,OFFICIAL RECEIVER SERVICES                                                                          ,Staff Payment,BA0000299908,17.00,
BEIS,The Insolvency Service,17/10/2016,Travel and Subsistence,OFFICIAL RECEIVER SERVICES                                                                          ,Staff Payment,BA0000299908,112.10,
BEIS,The Insolvency Service,17/10/2016,Travel and Subsistence,OFFICIAL RECEIVER SERVICES                                                                          ,Staff Payment,BA0000299908,23.00,
BEIS,The Insolvency Service,17/10/2016,Travel and Subsistence,PEOPLE & CAPABILITY                                                                                 ,Staff Payment,BA0000299908,5.00,
BEIS,The Insolvency Service,17/10/2016,Employee Related Costs,OFFICIAL RECEIVER SERVICES                                                                          ,Staff Payment,BA0000300018,"1,915.78",
BEIS,The Insolvency Service,17/10/2016,Employee Related Costs,PEOPLE & CAPABILITY                                                                                 ,Staff Payment,BA0000299908,130.00,
BEIS,The Insolvency Service,17/10/2016,Telecoms,OFFICIAL RECEIVER SERVICES                                                                          ,VODAFONE - CABLE & WIRELESS COMMUNICATIONS,BA0000300112,396.11,232303710
BEIS,The Insolvency Service,17/10/2016,Telecoms,INFORMATION TECHNOLOGY                                                                              ,VODAFONE CORPORATE LTD,BA0000300098,388.80,569953277
BEIS,The Insolvency Service,17/10/2016,Telecoms,INFORMATION TECHNOLOGY                                                                              ,VODAFONE CORPORATE LTD,BA0000300099,337.60,569953277
BEIS,The Insolvency Service,17/10/2016,Telecoms,INFORMATION TECHNOLOGY                                                                              ,VODAFONE CORPORATE LTD,BA0000300101,108.00,569953277
BEIS,The Insolvency Service,18/10/2016,Office Supplies and Services,BUSINESS SERVICES DIRECTORATE                                                                       ,BANNER BUSINESS SERVICES Ltd.,BA0000300135,"1,501.02",731860439
BEIS,The Insolvency Service,18/10/2016,Office Supplies and Services,BUSINESS SERVICES DIRECTORATE                                                                       ,BANNER BUSINESS SERVICES Ltd.,BA0000300137,782.62,731860439
BEIS,The Insolvency Service,18/10/2016,Office Supplies and Services,FINANCE AND COMMERCIAL                                                                              ,BANNER BUSINESS SERVICES Ltd.,BA0000300135,197.98,731860439
BEIS,The Insolvency Service,18/10/2016,Office Supplies and Services,FINANCE AND COMMERCIAL                                                                              ,BANNER BUSINESS SERVICES Ltd.,BA0000300135,"1,074.82",731860439
BEIS,The Insolvency Service,18/10/2016,Office Supplies and Services,FINANCE AND COMMERCIAL                                                                              ,BANNER BUSINESS SERVICES Ltd.,BA0000300135,"1,993.56",731860439
BEIS,The Insolvency Service,18/10/2016,Office Supplies and Services,FINANCE AND COMMERCIAL                                                                              ,BANNER BUSINESS SERVICES Ltd.,BA0000300137,966.91,731860439
BEIS,The Insolvency Service,18/10/2016,Office Supplies and Services,FINANCE AND COMMERCIAL                                                                              ,BANNER BUSINESS SERVICES Ltd.,BA0000300137,"1,133.00",731860439
BEIS,The Insolvency Service,18/10/2016,Office Supplies and Services,INVESTIGATIONS & ENFORCEMENT                                                                        ,BANNER BUSINESS SERVICES Ltd.,BA0000300135,204.36,731860439
BEIS,The Insolvency Service,18/10/2016,Office Supplies and Services,INVESTIGATIONS & ENFORCEMENT                                                                        ,BANNER BUSINESS SERVICES Ltd.,BA0000300137,227.08,731860439
BEIS,The Insolvency Service,18/10/2016,Office Supplies and Services,OFFICIAL RECEIVER SERVICES                                                                          ,BANNER BUSINESS SERVICES Ltd.,BA0000300135,10.50,731860439
BEIS,The Insolvency Service,18/10/2016,Office Supplies and Services,OFFICIAL RECEIVER SERVICES                                                                          ,BANNER BUSINESS SERVICES Ltd.,BA0000300135,83.75,731860439
BEIS,The Insolvency Service,18/10/2016,Office Supplies and Services,OFFICIAL RECEIVER SERVICES                                                                          ,BANNER BUSINESS SERVICES Ltd.,BA0000300135,85.73,731860439
BEIS,The Insolvency Service,18/10/2016,Office Supplies and Services,OFFICIAL RECEIVER SERVICES                                                                          ,BANNER BUSINESS SERVICES Ltd.,BA0000300135,103.22,731860439
BEIS,The Insolvency Service,18/10/2016,Office Supplies and Services,OFFICIAL RECEIVER SERVICES                                                                          ,BANNER BUSINESS SERVICES Ltd.,BA0000300135,137.98,731860439
BEIS,The Insolvency Service,18/10/2016,Office Supplies and Services,OFFICIAL RECEIVER SERVICES                                                                          ,BANNER BUSINESS SERVICES Ltd.,BA0000300135,227.23,731860439
BEIS,The Insolvency Service,18/10/2016,Office Supplies and Services,OFFICIAL RECEIVER SERVICES                                                                          ,BANNER BUSINESS SERVICES Ltd.,BA0000300135,242.10,731860439
BEIS,The Insolvency Service,18/10/2016,Office Supplies and Services,OFFICIAL RECEIVER SERVICES                                                                          ,BANNER BUSINESS SERVICES Ltd.,BA0000300135,247.00,731860439
BEIS,The Insolvency Service,18/10/2016,Office Supplies and Services,OFFICIAL RECEIVER SERVICES                                                                          ,BANNER BUSINESS SERVICES Ltd.,BA0000300135,313.32,731860439
BEIS,The Insolvency Service,18/10/2016,Office Supplies and Services,OFFICIAL RECEIVER SERVICES                                                                          ,BANNER BUSINESS SERVICES Ltd.,BA0000300135,338.32,731860439
BEIS,The Insolvency Service,18/10/2016,Office Supplies and Services,OFFICIAL RECEIVER SERVICES                                                                          ,BANNER BUSINESS SERVICES Ltd.,BA0000300135,421.40,731860439
BEIS,The Insolvency Service,18/10/2016,Office Supplies and Services,OFFICIAL RECEIVER SERVICES                                                                          ,BANNER BUSINESS SERVICES Ltd.,BA0000300135,484.08,731860439
BEIS,The Insolvency Service,18/10/2016,Office Supplies and Services,OFFICIAL RECEIVER SERVICES                                                                          ,BANNER BUSINESS SERVICES Ltd.,BA0000300135,696.24,731860439
BEIS,The Insolvency Service,18/10/2016,Office Supplies and Services,OFFICIAL RECEIVER SERVICES                                                                          ,BANNER BUSINESS SERVICES Ltd.,BA0000300135,893.36,731860439
BEIS,The Insolvency Service,18/10/2016,Office Supplies and Services,OFFICIAL RECEIVER SERVICES                                                                          ,BANNER BUSINESS SERVICES Ltd.,BA0000300137,74.94,731860439
BEIS,The Insolvency Service,18/10/2016,Office Supplies and Services,OFFICIAL RECEIVER SERVICES                                                                          ,BANNER BUSINESS SERVICES Ltd.,BA0000300137,85.06,731860439
BEIS,The Insolvency Service,18/10/2016,Office Supplies and Services,OFFICIAL RECEIVER SERVICES                                                                          ,BANNER BUSINESS SERVICES Ltd.,BA0000300137,111.40,731860439
BEIS,The Insolvency Service,18/10/2016,Office Supplies and Services,OFFICIAL RECEIVER SERVICES                                                                          ,BANNER BUSINESS SERVICES Ltd.,BA0000300137,114.37,731860439
BEIS,The Insolvency Service,18/10/2016,Office Supplies and Services,OFFICIAL RECEIVER SERVICES                                                                          ,BANNER BUSINESS SERVICES Ltd.,BA0000300137,116.39,731860439
BEIS,The Insolvency Service,18/10/2016,Office Supplies and Services,OFFICIAL RECEIVER SERVICES                                                                          ,BANNER BUSINESS SERVICES Ltd.,BA0000300137,147.36,731860439
BEIS,The Insolvency Service,18/10/2016,Office Supplies and Services,OFFICIAL RECEIVER SERVICES                                                                          ,BANNER BUSINESS SERVICES Ltd.,BA0000300137,164.84,731860439
BEIS,The Insolvency Service,18/10/2016,Office Supplies and Services,OFFICIAL RECEIVER SERVICES                                                                          ,BANNER BUSINESS SERVICES Ltd.,BA0000300137,232.66,731860439
BEIS,The Insolvency Service,18/10/2016,Office Supplies and Services,OFFICIAL RECEIVER SERVICES                                                                          ,BANNER BUSINESS SERVICES Ltd.,BA0000300137,243.61,731860439
BEIS,The Insolvency Service,18/10/2016,Office Supplies and Services,OFFICIAL RECEIVER SERVICES                                                                          ,BANNER BUSINESS SERVICES Ltd.,BA0000300137,253.28,731860439
BEIS,The Insolvency Service,18/10/2016,Office Supplies and Services,OFFICIAL RECEIVER SERVICES                                                                          ,BANNER BUSINESS SERVICES Ltd.,BA0000300137,266.08,731860439
BEIS,The Insolvency Service,18/10/2016,Office Supplies and Services,OFFICIAL RECEIVER SERVICES                                                                          ,BANNER BUSINESS SERVICES Ltd.,BA0000300137,325.74,731860439
BEIS,The Insolvency Service,18/10/2016,Office Supplies and Services,OFFICIAL RECEIVER SERVICES                                                                          ,BANNER BUSINESS SERVICES Ltd.,BA0000300137,386.12,731860439
BEIS,The Insolvency Service,18/10/2016,Office Supplies and Services,OFFICIAL RECEIVER SERVICES                                                                          ,BANNER BUSINESS SERVICES Ltd.,BA0000300137,421.63,731860439
BEIS,The Insolvency Service,18/10/2016,Office Supplies and Services,PEOPLE & CAPABILITY                                                                                 ,BANNER BUSINESS SERVICES Ltd.,BA0000300137,72.18,731860439
BEIS,The Insolvency Service,18/10/2016,Investigation and Enforcement Costs,INVESTIGATIONS & ENFORCEMENT                                                                        ,BIS - DEPT. FOR BUSINESS INNOVATION & SKILLS,BA0000300139,150.00,888825550
BEIS,The Insolvency Service,18/10/2016,Investigation and Enforcement Costs,INVESTIGATIONS & ENFORCEMENT                                                                        ,BIS - DEPT. FOR BUSINESS INNOVATION & SKILLS,BA0000300140,300.00,888825550
BEIS,The Insolvency Service,18/10/2016,Training Costs,PEOPLE & CAPABILITY                                                                                 ,CAPITA BUSINESS SERVICES LTD,BA0000300146,"7,975.61",618184140
BEIS,The Insolvency Service,18/10/2016,Insolvency Case Related Costs,OFFICIAL RECEIVER SERVICES                                                                          ,COMPANIES HOUSE,BA0000300138,4.00,GD255
BEIS,The Insolvency Service,18/10/2016,Office Supplies and Services,INVESTIGATIONS & ENFORCEMENT                                                                        ,COMPANIES HOUSE,BA0000300149,196.00,GD255
BEIS,The Insolvency Service,18/10/2016,Employee Related Costs,PEOPLE & CAPABILITY                                                                                 ,DISCLOSURE SCOTLAND,BA0000300154,150.00,
BEIS,The Insolvency Service,18/10/2016,Computer and IT Systems,BUSINESS SERVICES DIRECTORATE                                                                       ,EXPERIAN QAS LTD,BA0000300153,455.84,887133593
BEIS,The Insolvency Service,18/10/2016,Computer and IT Systems,BUSINESS SERVICES DIRECTORATE                                                                       ,EXPERIAN QAS LTD,BA0000300155,454.46,887133593
BEIS,The Insolvency Service,18/10/2016,Computer and IT Systems,BUSINESS SERVICES DIRECTORATE                                                                       ,EXPERIAN QAS LTD,BA0000300156,452.20,887133593
BEIS,The Insolvency Service,18/10/2016,Computer and IT Systems,BUSINESS SERVICES DIRECTORATE                                                                       ,EXPERIAN QAS LTD,BA0000300158,496.62,887133593
BEIS,The Insolvency Service,18/10/2016,Department for Business Innovation and Skills,FINANCE AND COMMERCIAL,HMRC,BA0000300145,"29,442.52",
BEIS,The Insolvency Service,18/10/2016,Telecoms,BUSINESS SERVICES DIRECTORATE                                                                       ,MAINTEL                                                     ,BA0000300150,160.80,
BEIS,The Insolvency Service,18/10/2016,Investigation and Enforcement Costs,INVESTIGATIONS & ENFORCEMENT                                                                        ,MARSTON GROUP LIMITED                                       ,BA0000300143,90.00,795928947
BEIS,The Insolvency Service,18/10/2016,Investigation and Enforcement Costs,INVESTIGATIONS & ENFORCEMENT                                                                        ,MARSTON GROUP LIMITED                                       ,BA0000300141,462.00,795928947
BEIS,The Insolvency Service,18/10/2016,Employee Related Costs,OFFICIAL RECEIVER SERVICES                                                                          ,Staff Payment,BA0000300052,"1,050.00",
BEIS,The Insolvency Service,18/10/2016,Insolvency Case Related Costs,OFFICIAL RECEIVER SERVICES                                                                          ,THE STATIONERY OFFICE LTD,BA0000300144,139.80,662774703
BEIS,The Insolvency Service,18/10/2016,Insolvency Case Related Costs,OFFICIAL RECEIVER SERVICES                                                                          ,THE STATIONERY OFFICE LTD,BA0000300148,139.80,662774703
BEIS,The Insolvency Service,19/10/2016,Computer and IT Systems,INFORMATION TECHNOLOGY                                                                              ,2T SECURITY LTD                                             ,BA0000300180,"2,160.00",
BEIS,The Insolvency Service,19/10/2016,Accommodation,ESTATES,BRITISH GAS BUSINESS,BA0000300179,57.49,684966762
BEIS,The Insolvency Service,19/10/2016,Investigation and Enforcement Costs,INVESTIGATIONS & ENFORCEMENT                                                                        ,BURNESS PAULL & WILLIAMSONS SOLICITORS,BA0000300183,"5,884.70",268398111
BEIS,The Insolvency Service,19/10/2016,Investigation and Enforcement Costs,INVESTIGATIONS & ENFORCEMENT                                                                        ,BURNESS PAULL & WILLIAMSONS SOLICITORS,BA0000300183,"4,792.24",268398111
BEIS,The Insolvency Service,19/10/2016,Investigation and Enforcement Costs,INVESTIGATIONS & ENFORCEMENT                                                                        ,BURNESS PAULL & WILLIAMSONS SOLICITORS,BA0000300183,"2,948.54",268398111
BEIS,The Insolvency Service,19/10/2016,Investigation and Enforcement Costs,INVESTIGATIONS & ENFORCEMENT                                                                        ,BURNESS PAULL & WILLIAMSONS SOLICITORS,BA0000300183,"4,330.85",268398111
BEIS,The Insolvency Service,19/10/2016,Postage,FINANCE AND COMMERCIAL                                                                              ,CITY SPRINT UK LTD,BA0000300176,16.24,
BEIS,The Insolvency Service,19/10/2016,Insolvency Case Related Costs,OFFICIAL RECEIVER SERVICES                                                                          ,COMPANIES HOUSE,BA0000300173,4.00,GD255
BEIS,The Insolvency Service,19/10/2016,Insolvency Case Related Costs,OFFICIAL RECEIVER SERVICES                                                                          ,COMPANIES HOUSE,BA0000300178,6.00,GD255
BEIS,The Insolvency Service,19/10/2016,Training Costs,INVESTIGATIONS & ENFORCEMENT                                                                        ,DODS PARLIMENTARY COMMUNICATIONS LTD,BA0000300177,235.00,792067900
BEIS,The Insolvency Service,19/10/2016,Postage,INFORMATION TECHNOLOGY                                                                              ,DX NETWORK SERVICES LTD,BA0000300164,798.00,849741385
BEIS,The Insolvency Service,19/10/2016,Investigation and Enforcement Costs,INVESTIGATIONS & ENFORCEMENT                                                                        ,GOWLING WRAGGE LAWRENCE GRAHAM  & CO                        ,BA0000300181,63.20,858698838
BEIS,The Insolvency Service,19/10/2016,Investigation and Enforcement Costs,INVESTIGATIONS & ENFORCEMENT                                                                        ,GOWLING WRAGGE LAWRENCE GRAHAM  & CO                        ,BA0000300182,435.00,858698838
BEIS,The Insolvency Service,19/10/2016,Investigation and Enforcement Costs,INVESTIGATIONS & ENFORCEMENT                                                                        ,GOWLING WRAGGE LAWRENCE GRAHAM  & CO                        ,BA0000300166,"26,665.40",858698838
BEIS,The Insolvency Service,19/10/2016,Investigation and Enforcement Costs,INVESTIGATIONS & ENFORCEMENT                                                                        ,GOWLING WRAGGE LAWRENCE GRAHAM  & CO                        ,BA0000300167,"5,295.80",858698838
BEIS,The Insolvency Service,19/10/2016,Investigation and Enforcement Costs,INVESTIGATIONS & ENFORCEMENT                                                                        ,GOWLING WRAGGE LAWRENCE GRAHAM  & CO                        ,BA0000300169,"5,630.00",858698838
BEIS,The Insolvency Service,19/10/2016,Investigation and Enforcement Costs,INVESTIGATIONS & ENFORCEMENT                                                                        ,GOWLING WRAGGE LAWRENCE GRAHAM  & CO                        ,BA0000300165,"6,946.58",858698838
BEIS,The Insolvency Service,19/10/2016,Employee Related Costs,P&C - People Relations                                                                              ,HEALTH ASSURED LIMITED                                      ,BA0000300187,830.06,927524217
BEIS,The Insolvency Service,19/10/2016,Insolvency Case Related Costs,OFFICIAL RECEIVER SERVICES                                                                          ,HPI LTD,BA0000300162,7.27,942407139
BEIS,The Insolvency Service,19/10/2016,Telecoms,INFORMATION TECHNOLOGY                                                                              ,MAINTEL                                                     ,BA0000300174,"19,756.90",
BEIS,The Insolvency Service,19/10/2016,Accommodation,OFFICIAL RECEIVER SERVICES                                                                          ,SHORROCK TRICHEM LTD,BA0000300184,"1,146.37",732829814
BEIS,The Insolvency Service,19/10/2016,Employee Related Costs,FINANCE AND COMMERCIAL                                                                              ,SPECSAVERS OPTICAL GROUP                                    ,BA0000300159,150.00,520011330
BEIS,The Insolvency Service,19/10/2016,Travel and Subsistence,FINANCE AND COMMERCIAL                                                                              ,Staff Payment,BA0000300161,95.00,
BEIS,The Insolvency Service,19/10/2016,Travel and Subsistence,FINANCE AND COMMERCIAL                                                                              ,Staff Payment,BA0000300161,95.00,
BEIS,The Insolvency Service,19/10/2016,Travel and Subsistence,FINANCE AND COMMERCIAL                                                                              ,Staff Payment,BA0000300161,60.30,
BEIS,The Insolvency Service,19/10/2016,Travel and Subsistence,FINANCE AND COMMERCIAL                                                                              ,Staff Payment,BA0000300161,48.10,
BEIS,The Insolvency Service,19/10/2016,Travel and Subsistence,INVESTIGATIONS & ENFORCEMENT                                                                        ,Staff Payment,BA0000300161,20.00,
BEIS,The Insolvency Service,19/10/2016,Travel and Subsistence,P&C - Talent                                                                                        ,Staff Payment,BA0000300161,7.80,
BEIS,The Insolvency Service,19/10/2016,Travel and Subsistence,FINANCE AND COMMERCIAL                                                                              ,Staff Payment,BA0000300161,13.50,
BEIS,The Insolvency Service,19/10/2016,Travel and Subsistence,FINANCE AND COMMERCIAL                                                                              ,Staff Payment,BA0000300161,18.00,
BEIS,The Insolvency Service,19/10/2016,Travel and Subsistence,FINANCE AND COMMERCIAL                                                                              ,Staff Payment,BA0000300161,13.50,
BEIS,The Insolvency Service,19/10/2016,Travel and Subsistence,FINANCE AND COMMERCIAL                                                                              ,Staff Payment,BA0000300161,18.00,
BEIS,The Insolvency Service,19/10/2016,Travel and Subsistence,INVESTIGATIONS & ENFORCEMENT                                                                        ,Staff Payment,BA0000300161,36.00,
BEIS,The Insolvency Service,19/10/2016,Travel and Subsistence,P&C - Talent                                                                                        ,Staff Payment,BA0000300161,10.00,
BEIS,The Insolvency Service,19/10/2016,Travel and Subsistence,P&C - Talent                                                                                        ,Staff Payment,BA0000300161,73.80,
BEIS,The Insolvency Service,19/10/2016,Travel and Subsistence,P&C - Talent                                                                                        ,Staff Payment,BA0000300161,20.00,
BEIS,The Insolvency Service,19/10/2016,Travel and Subsistence,FINANCE AND COMMERCIAL                                                                              ,Staff Payment,BA0000300161,30.00,
BEIS,The Insolvency Service,19/10/2016,Travel and Subsistence,PEOPLE & CAPABILITY                                                                                 ,Staff Payment,BA0000300161,34.98,
BEIS,The Insolvency Service,19/10/2016,Travel and Subsistence,INFORMATION TECHNOLOGY                                                                              ,Staff Payment,BA0000300161,5.00,
BEIS,The Insolvency Service,19/10/2016,Travel and Subsistence,OFFICIAL RECEIVER SERVICES                                                                          ,Staff Payment,BA0000300161,4.79,
BEIS,The Insolvency Service,19/10/2016,Travel and Subsistence,P&C - Talent                                                                                        ,Staff Payment,BA0000300161,10.00,
BEIS,The Insolvency Service,19/10/2016,Travel and Subsistence,P&C - Talent                                                                                        ,Staff Payment,BA0000300161,28.20,
BEIS,The Insolvency Service,19/10/2016,Travel and Subsistence,BUSINESS SERVICES DIRECTORATE                                                                       ,Staff Payment,BA0000300161,117.00,
BEIS,The Insolvency Service,19/10/2016,Travel and Subsistence,BUSINESS SERVICES DIRECTORATE                                                                       ,Staff Payment,BA0000300161,85.73,
BEIS,The Insolvency Service,19/10/2016,Travel and Subsistence,INVESTIGATIONS & ENFORCEMENT                                                                        ,Staff Payment,BA0000300161,211.36,
BEIS,The Insolvency Service,19/10/2016,Travel and Subsistence,P&C - People Relations                                                                              ,Staff Payment,BA0000300185,62.00,
BEIS,The Insolvency Service,19/10/2016,Travel and Subsistence,BUSINESS SERVICES DIRECTORATE                                                                       ,Staff Payment,BA0000300161,10.80,
BEIS,The Insolvency Service,19/10/2016,Travel and Subsistence,BUSINESS SERVICES DIRECTORATE                                                                       ,Staff Payment,BA0000300161,43.80,
BEIS,The Insolvency Service,19/10/2016,Travel and Subsistence,BUSINESS SERVICES DIRECTORATE                                                                       ,Staff Payment,BA0000300161,15.00,
BEIS,The Insolvency Service,19/10/2016,Travel and Subsistence,BUSINESS SERVICES DIRECTORATE                                                                       ,Staff Payment,BA0000300161,10.00,
BEIS,The Insolvency Service,19/10/2016,Travel and Subsistence,BUSINESS SERVICES DIRECTORATE                                                                       ,Staff Payment,BA0000300161,11.00,
BEIS,The Insolvency Service,19/10/2016,Travel and Subsistence,BUSINESS SERVICES DIRECTORATE                                                                       ,Staff Payment,BA0000300185,3.20,
BEIS,The Insolvency Service,19/10/2016,Travel and Subsistence,INFORMATION TECHNOLOGY                                                                              ,Staff Payment,BA0000300161,2.30,
BEIS,The Insolvency Service,19/10/2016,Travel and Subsistence,INVESTIGATIONS & ENFORCEMENT                                                                        ,Staff Payment,BA0000300161,90.10,
BEIS,The Insolvency Service,19/10/2016,Travel and Subsistence,INVESTIGATIONS & ENFORCEMENT                                                                        ,Staff Payment,BA0000300161,2.40,
BEIS,The Insolvency Service,19/10/2016,Travel and Subsistence,INVESTIGATIONS & ENFORCEMENT                                                                        ,Staff Payment,BA0000300161,4.80,
BEIS,The Insolvency Service,19/10/2016,Travel and Subsistence,INVESTIGATIONS & ENFORCEMENT                                                                        ,Staff Payment,BA0000300185,6.20,
BEIS,The Insolvency Service,19/10/2016,Travel and Subsistence,INVESTIGATIONS & ENFORCEMENT                                                                        ,Staff Payment,BA0000300161,7.60,
BEIS,The Insolvency Service,19/10/2016,Travel and Subsistence,INVESTIGATIONS & ENFORCEMENT                                                                        ,Staff Payment,BA0000300161,2.80,
BEIS,The Insolvency Service,19/10/2016,Travel and Subsistence,OFFICIAL RECEIVER SERVICES                                                                          ,Staff Payment,BA0000300185,9.80,
BEIS,The Insolvency Service,19/10/2016,Travel and Subsistence,OFFICIAL RECEIVER SERVICES                                                                          ,Staff Payment,BA0000300161,4.00,
BEIS,The Insolvency Service,19/10/2016,Travel and Subsistence,BUSINESS SERVICES DIRECTORATE                                                                       ,Staff Payment,BA0000300161,22.60,
BEIS,The Insolvency Service,19/10/2016,Travel and Subsistence,BUSINESS SERVICES DIRECTORATE                                                                       ,Staff Payment,BA0000300161,119.70,
BEIS,The Insolvency Service,19/10/2016,Travel and Subsistence,BUSINESS SERVICES DIRECTORATE                                                                       ,Staff Payment,BA0000300161,5.25,
BEIS,The Insolvency Service,19/10/2016,Travel and Subsistence,BUSINESS SERVICES DIRECTORATE                                                                       ,Staff Payment,BA0000300161,44.75,
BEIS,The Insolvency Service,19/10/2016,Travel and Subsistence,BUSINESS SERVICES DIRECTORATE                                                                       ,Staff Payment,BA0000300161,6.00,
BEIS,The Insolvency Service,19/10/2016,Travel and Subsistence,BUSINESS SERVICES DIRECTORATE                                                                       ,Staff Payment,BA0000300161,72.00,
BEIS,The Insolvency Service,19/10/2016,Travel and Subsistence,INFORMATION TECHNOLOGY                                                                              ,Staff Payment,BA0000300161,13.55,
BEIS,The Insolvency Service,19/10/2016,Travel and Subsistence,INVESTIGATIONS & ENFORCEMENT                                                                        ,Staff Payment,BA0000300161,12.00,
BEIS,The Insolvency Service,19/10/2016,Travel and Subsistence,INVESTIGATIONS & ENFORCEMENT                                                                        ,Staff Payment,BA0000300161,18.90,
BEIS,The Insolvency Service,19/10/2016,Travel and Subsistence,INVESTIGATIONS & ENFORCEMENT                                                                        ,Staff Payment,BA0000300161,15.60,
BEIS,The Insolvency Service,19/10/2016,Travel and Subsistence,INVESTIGATIONS & ENFORCEMENT                                                                        ,Staff Payment,BA0000300185,7.50,
BEIS,The Insolvency Service,19/10/2016,Travel and Subsistence,INVESTIGATIONS & ENFORCEMENT                                                                        ,Staff Payment,BA0000300185,11.00,
BEIS,The Insolvency Service,19/10/2016,Travel and Subsistence,INVESTIGATIONS & ENFORCEMENT                                                                        ,Staff Payment,BA0000300185,189.00,
BEIS,The Insolvency Service,19/10/2016,Travel and Subsistence,INVESTIGATIONS & ENFORCEMENT                                                                        ,Staff Payment,BA0000300161,7.00,
BEIS,The Insolvency Service,19/10/2016,Travel and Subsistence,INVESTIGATIONS & ENFORCEMENT                                                                        ,Staff Payment,BA0000300161,9.90,
BEIS,The Insolvency Service,19/10/2016,Travel and Subsistence,INVESTIGATIONS & ENFORCEMENT                                                                        ,Staff Payment,BA0000300161,12.00,
BEIS,The Insolvency Service,19/10/2016,Travel and Subsistence,INVESTIGATIONS & ENFORCEMENT                                                                        ,Staff Payment,BA0000300161,9.90,
BEIS,The Insolvency Service,19/10/2016,Travel and Subsistence,INVESTIGATIONS & ENFORCEMENT                                                                        ,Staff Payment,BA0000300161,12.00,
BEIS,The Insolvency Service,19/10/2016,Travel and Subsistence,INVESTIGATIONS & ENFORCEMENT                                                                        ,Staff Payment,BA0000300161,10.50,
BEIS,The Insolvency Service,19/10/2016,Travel and Subsistence,INVESTIGATIONS & ENFORCEMENT                                                                        ,Staff Payment,BA0000300161,8.10,
BEIS,The Insolvency Service,19/10/2016,Travel and Subsistence,OFFICIAL RECEIVER SERVICES                                                                          ,Staff Payment,BA0000300185,6.30,
BEIS,The Insolvency Service,19/10/2016,Travel and Subsistence,OFFICIAL RECEIVER SERVICES                                                                          ,Staff Payment,BA0000300185,6.30,
BEIS,The Insolvency Service,19/10/2016,Travel and Subsistence,OFFICIAL RECEIVER SERVICES                                                                          ,Staff Payment,BA0000300161,6.30,
BEIS,The Insolvency Service,19/10/2016,Travel and Subsistence,OFFICIAL RECEIVER SERVICES                                                                          ,Staff Payment,BA0000300161,23.40,
BEIS,The Insolvency Service,19/10/2016,Travel and Subsistence,OFFICIAL RECEIVER SERVICES                                                                          ,Staff Payment,BA0000300161,7.00,
BEIS,The Insolvency Service,19/10/2016,Travel and Subsistence,OFFICIAL RECEIVER SERVICES                                                                          ,Staff Payment,BA0000300161,12.50,
BEIS,The Insolvency Service,19/10/2016,Travel and Subsistence,OFFICIAL RECEIVER SERVICES                                                                          ,Staff Payment,BA0000300161,69.50,
BEIS,The Insolvency Service,19/10/2016,Travel and Subsistence,OFFICIAL RECEIVER SERVICES                                                                          ,Staff Payment,BA0000300161,3.00,
BEIS,The Insolvency Service,19/10/2016,Travel and Subsistence,OFFICIAL RECEIVER SERVICES                                                                          ,Staff Payment,BA0000300161,12.00,
BEIS,The Insolvency Service,19/10/2016,Travel and Subsistence,OFFICIAL RECEIVER SERVICES                                                                          ,Staff Payment,BA0000300161,3.00,
BEIS,The Insolvency Service,19/10/2016,Travel and Subsistence,OFFICIAL RECEIVER SERVICES                                                                          ,Staff Payment,BA0000300161,3.60,
BEIS,The Insolvency Service,19/10/2016,Travel and Subsistence,OFFICIAL RECEIVER SERVICES                                                                          ,Staff Payment,BA0000300161,3.60,
BEIS,The Insolvency Service,19/10/2016,Travel and Subsistence,OFFICIAL RECEIVER SERVICES                                                                          ,Staff Payment,BA0000300161,36.00,
BEIS,The Insolvency Service,19/10/2016,Travel and Subsistence,OFFICIAL RECEIVER SERVICES                                                                          ,Staff Payment,BA0000300161,58.50,
BEIS,The Insolvency Service,19/10/2016,Travel and Subsistence,OFFICIAL RECEIVER SERVICES                                                                          ,Staff Payment,BA0000300161,70.20,
BEIS,The Insolvency Service,19/10/2016,Travel and Subsistence,OFFICIAL RECEIVER SERVICES                                                                          ,Staff Payment,BA0000300185,24.00,
BEIS,The Insolvency Service,19/10/2016,Travel and Subsistence,OFFICIAL RECEIVER SERVICES                                                                          ,Staff Payment,BA0000300161,6.60,
BEIS,The Insolvency Service,19/10/2016,Travel and Subsistence,OFFICIAL RECEIVER SERVICES                                                                          ,Staff Payment,BA0000300161,38.70,
BEIS,The Insolvency Service,19/10/2016,Travel and Subsistence,OFFICIAL RECEIVER SERVICES                                                                          ,Staff Payment,BA0000300161,255.15,
BEIS,The Insolvency Service,19/10/2016,Travel and Subsistence,OFFICIAL RECEIVER SERVICES                                                                          ,Staff Payment,BA0000300161,15.30,
BEIS,The Insolvency Service,19/10/2016,Travel and Subsistence,OFFICIAL RECEIVER SERVICES                                                                          ,Staff Payment,BA0000300161,37.80,
BEIS,The Insolvency Service,19/10/2016,Travel and Subsistence,OFFICIAL RECEIVER SERVICES                                                                          ,Staff Payment,BA0000300185,4.95,
BEIS,The Insolvency Service,19/10/2016,Travel and Subsistence,OFFICIAL RECEIVER SERVICES                                                                          ,Staff Payment,BA0000300161,9.90,
BEIS,The Insolvency Service,19/10/2016,Travel and Subsistence,OFFICIAL RECEIVER SERVICES                                                                          ,Staff Payment,BA0000300161,6.50,
BEIS,The Insolvency Service,19/10/2016,Travel and Subsistence,OFFICIAL RECEIVER SERVICES                                                                          ,Staff Payment,BA0000300161,91.80,
BEIS,The Insolvency Service,19/10/2016,Travel and Subsistence,OFFICIAL RECEIVER SERVICES                                                                          ,Staff Payment,BA0000300161,1.35,
BEIS,The Insolvency Service,19/10/2016,Travel and Subsistence,OFFICIAL RECEIVER SERVICES                                                                          ,Staff Payment,BA0000300161,6.40,
BEIS,The Insolvency Service,19/10/2016,Travel and Subsistence,OFFICIAL RECEIVER SERVICES                                                                          ,Staff Payment,BA0000300161,6.60,
BEIS,The Insolvency Service,19/10/2016,Travel and Subsistence,OFFICIAL RECEIVER SERVICES                                                                          ,Staff Payment,BA0000300161,38.70,
BEIS,The Insolvency Service,19/10/2016,Travel and Subsistence,BUSINESS SERVICES DIRECTORATE                                                                       ,Staff Payment,BA0000300161,25.65,
BEIS,The Insolvency Service,19/10/2016,Travel and Subsistence,INVESTIGATIONS & ENFORCEMENT                                                                        ,Staff Payment,BA0000300161,10.00,
BEIS,The Insolvency Service,19/10/2016,Travel and Subsistence,INVESTIGATIONS & ENFORCEMENT                                                                        ,Staff Payment,BA0000300185,26.90,
BEIS,The Insolvency Service,19/10/2016,Travel and Subsistence,BUSINESS SERVICES DIRECTORATE                                                                       ,Staff Payment,BA0000300161,30.00,
BEIS,The Insolvency Service,19/10/2016,Travel and Subsistence,BUSINESS SERVICES DIRECTORATE                                                                       ,Staff Payment,BA0000300161,30.10,
BEIS,The Insolvency Service,19/10/2016,Travel and Subsistence,BUSINESS SERVICES DIRECTORATE                                                                       ,Staff Payment,BA0000300161,34.94,
BEIS,The Insolvency Service,19/10/2016,Travel and Subsistence,BUSINESS SERVICES DIRECTORATE                                                                       ,Staff Payment,BA0000300161,22.45,
BEIS,The Insolvency Service,19/10/2016,Travel and Subsistence,BUSINESS SERVICES DIRECTORATE                                                                       ,Staff Payment,BA0000300161,28.43,
BEIS,The Insolvency Service,19/10/2016,Travel and Subsistence,BUSINESS SERVICES DIRECTORATE                                                                       ,Staff Payment,BA0000300161,9.19,
BEIS,The Insolvency Service,19/10/2016,Travel and Subsistence,BUSINESS SERVICES DIRECTORATE                                                                       ,Staff Payment,BA0000300161,4.05,
BEIS,The Insolvency Service,19/10/2016,Travel and Subsistence,BUSINESS SERVICES DIRECTORATE                                                                       ,Staff Payment,BA0000300161,61.94,
BEIS,The Insolvency Service,19/10/2016,Travel and Subsistence,BUSINESS SERVICES DIRECTORATE                                                                       ,Staff Payment,BA0000300161,30.00,
BEIS,The Insolvency Service,19/10/2016,Travel and Subsistence,BUSINESS SERVICES DIRECTORATE                                                                       ,Staff Payment,BA0000300161,29.34,
BEIS,The Insolvency Service,19/10/2016,Travel and Subsistence,BUSINESS SERVICES DIRECTORATE                                                                       ,Staff Payment,BA0000300161,4.50,
BEIS,The Insolvency Service,19/10/2016,Travel and Subsistence,BUSINESS SERVICES DIRECTORATE                                                                       ,Staff Payment,BA0000300161,4.75,
BEIS,The Insolvency Service,19/10/2016,Travel and Subsistence,BUSINESS SERVICES DIRECTORATE                                                                       ,Staff Payment,BA0000300161,5.00,
BEIS,The Insolvency Service,19/10/2016,Travel and Subsistence,BUSINESS SERVICES DIRECTORATE                                                                       ,Staff Payment,BA0000300161,25.00,
BEIS,The Insolvency Service,19/10/2016,Travel and Subsistence,BUSINESS SERVICES DIRECTORATE                                                                       ,Staff Payment,BA0000300161,48.06,
BEIS,The Insolvency Service,19/10/2016,Travel and Subsistence,BUSINESS SERVICES DIRECTORATE                                                                       ,Staff Payment,BA0000300185,20.29,
BEIS,The Insolvency Service,19/10/2016,Travel and Subsistence,EXTERNAL AFFAIRS                                                                                    ,Staff Payment,BA0000300161,29.69,
BEIS,The Insolvency Service,19/10/2016,Travel and Subsistence,INFORMATION TECHNOLOGY                                                                              ,Staff Payment,BA0000300161,17.08,
BEIS,The Insolvency Service,19/10/2016,Travel and Subsistence,INFORMATION TECHNOLOGY                                                                              ,Staff Payment,BA0000300161,100.39,
BEIS,The Insolvency Service,19/10/2016,Travel and Subsistence,INVESTIGATIONS & ENFORCEMENT                                                                        ,Staff Payment,BA0000300161,115.06,
BEIS,The Insolvency Service,19/10/2016,Travel and Subsistence,INVESTIGATIONS & ENFORCEMENT                                                                        ,Staff Payment,BA0000300161,9.30,
BEIS,The Insolvency Service,19/10/2016,Travel and Subsistence,INVESTIGATIONS & ENFORCEMENT                                                                        ,Staff Payment,BA0000300161,5.00,
BEIS,The Insolvency Service,19/10/2016,Travel and Subsistence,INVESTIGATIONS & ENFORCEMENT                                                                        ,Staff Payment,BA0000300161,29.95,
BEIS,The Insolvency Service,19/10/2016,Travel and Subsistence,INVESTIGATIONS & ENFORCEMENT                                                                        ,Staff Payment,BA0000300185,4.22,
BEIS,The Insolvency Service,19/10/2016,Travel and Subsistence,INVESTIGATIONS & ENFORCEMENT                                                                        ,Staff Payment,BA0000300185,11.99,
BEIS,The Insolvency Service,19/10/2016,Travel and Subsistence,INVESTIGATIONS & ENFORCEMENT                                                                        ,Staff Payment,BA0000300161,5.00,
BEIS,The Insolvency Service,19/10/2016,Travel and Subsistence,INVESTIGATIONS & ENFORCEMENT                                                                        ,Staff Payment,BA0000300161,4.79,
BEIS,The Insolvency Service,19/10/2016,Travel and Subsistence,INVESTIGATIONS & ENFORCEMENT                                                                        ,Staff Payment,BA0000300161,4.95,
BEIS,The Insolvency Service,19/10/2016,Travel and Subsistence,INVESTIGATIONS & ENFORCEMENT                                                                        ,Staff Payment,BA0000300161,25.00,
